Workbook

Sheet Intro (hidden)
A3: GLOBAL CORRUPTION BAROMETER 2016
B5: Regions and country coverage

Sheet Country Data_EU
A1: Montenegro
A3: SUMMARY OF RESULTS | H3: COUNTRY CHARTS
A5: Montenegro | I5: 0.16 | J5: of service users paid a bribe to at least one of eight public services in the past 12 months.
A6: Q1 (Figure 1): How many of the following people do you think are involved in corruption, or haven't you heard enough about them to say? | B6: None | C6: Some of them | D6: Most of them | E6: All of them | F6: DK/ Haven't heard
A7: The President/Prime Minister and Officials in his Office | B7: 0.11 | C7: 0.13 | D7: 0.1 | E7: 0.08 | F7: 0.58
A8: Members of Parliament | B8: 0.08 | C8: 0.17 | D8: 0.11 | E8: 0.07 | F8: 0.57
A9: Government officials | B9: 0.08 | C9: 0.16 | D9: 0.12 | E9: 0.08 | F9: 0.56
A10: Local government representatives | B10: 0.08 | C10: 0.19 | D10: 0.1 | E10: 0.08 | F10: 0.55
A11: Tax officials | B11: 0.07 | C11: 0.2 | D11: 0.1 | E11: 0.08 | F11: 0.55
A12: Police | B12: 0.07 | C12: 0.21 | D12: 0.12 | E12: 0.07 | F12: 0.53
A13: Judges and Magistrates | B13: 0.07 | C13: 0.22 | D13: 0.11 | E13: 0.06 | F13: 0.53
A14: Business executives | B14: 0.08 | C14: 0.19 | D14: 0.11 | E14: 0.09 | F14: 0.53
A15: Religious leaders | B15: 0.14 | C15: 0.14 | D15: 0.06 | E15: 0.06 | F15: 0.61
A17: Q2 (Figure 2) | B17: Strongly disagree | C17: Disagree | D17: Neither disagree nor agree | E17: Agree | F17: Strongly agree | G17: DK/ Not applicable
A18: There is less corruption now than around 4 years ago | B18: 0.14 | C18: 0.32 | D18: 0.24 | E18: 0.14 | F18: 0.04 | G18: 0.13
A20: Q3 (Figure 3): In the past twelve months have you had contact with / did you try to get / requested assistence from...? | B20: Had contact | C20: % of service users who paid a bribe
A21: Medical treatment in the public health system | B21: 0.45 | C21: 0.15
A22: Road police | B22: 0.23 | C22: 0.11
A23: Public education (primary or secondary) | B23: 0.17 | C23: 0.08
A24: Public education (vocation) | B24: 0.15 | C24: 0.07
A25: Official documents from authorities | B25: 0.23 | C25: 0.05
A26: Social security benefits | B26: 0.03 | C26: * | V26: Figure 2
A27: Unemployment benefits | B27: 0.02 | C27: * | V27: Change in level | W27: % respondents
A28: Courts for a civil matter | B28: 0.02 | C28: * | W28: Disagree | X28: 0.46
A29: *this result has been removed due to a low base size of less than 60 respondents | W29: Neither agree nor disagree | X29: 0.24
W30: Agree | X30: 0.18
A31: Q3 - TOTAL BRIBES (Base. All service users) | B31: Yes | C31: No
A32: Paid a bribe for at least one of eight public services | B32: 0.16 | C32: 0.84
A34: Q4: Based on your experience, what do you think is the main reason why many people do not report corruption when it occurs? | B34: % of respondents
A35: People are afraid of the consequences | B35: 0.33
A36: Corruption is hidden/ it’s difficult to prove | B36: 0.19 | W36: Badly | X36: 0.5
A37: Nothing will be done / It wouldn’t make a difference | B37: 0.1 | W37: Well | X37: 0.17
A38: Because they would implicate themselves as bribe-givers | B38: 0.05
A39: People don’t know how to report it | B39: 0.03
A40: People don’t know where to report it | B40: 0.03
A41: The officials where they would report to are also corrupt / officials are involved in the corruption | B41: 0.02
A42: Most people do report incidents of corruption | B42: 0.02 | W42: Ordinary people can make a difference in the fight against corruption
A43: Corruption is normal / Everyone does it / everyone is involved | B43: 0.01 | W43: Agree | X43: 0.3
A44: It’s government’s money, not the people’s, so it’s not our problem | B44: 0.01
A45: People don’t have enough time to report it | B45: 0.01
A46: It’s too expensive to report (e.g. due to travel or phone charges) | B46: 0
A47: Refusal | B47: 0.05
A48: Other | B48: 0
A49: Don’t know | B49: 0.15
A51: Q5 (Figure 4): In your opinion, what are the most important problems facing this country that the government should address? | B51: % of respondents
A52: Unemployment | B52: 0.68 | W52: Badly
A53: Crime | B53: 0.42
A54: Health | B54: 0.41
A55: The economy | B55: 0.31
A56: Corruption/Bribery | B56: 0.31
A57: Education | B57: 0.2
A58: Environment | B58: 0.08
A59: Political instability/Security | B59: 0.08
A60: Infrastructure | B60: 0.07
A61: Immigration | B61: 0.01
A62: No Problems | B62: 0
A63: Other | B63: 0.01
A64: Don’t Know | B64: 0.03
A66: Q6 (Figure 5): How well or badly would you say the current government is handling… | B66: Very badly | C66: Fairly badly | D66: Fairly well | E66: Very well | F66: DK | G66: Haven't heard enough
A67: Fighting corruption in government | B67: 0.17 | C67: 0.33 | D67: 0.15 | E67: 0.02 | F67: 0.12 | G67: 0.19
A69: Q7 (Figure 6): Please tell me whether you agree or disagree with the following statement: | B69: Strongly agree | C69: Agree | D69: Neither | E69: Disagree | F69: Strongly disagree | G69: DK
A70: Ordinary people can make a difference in the fight against corruption | B70: 0.07 | C70: 0.23 | D70: 0.23 | E70: 0.17 | F70: 0.12 | G70: 0.12
A71: In our society it is generally acceptable for people to report a case of corruption they have witnessed | B71: 0.02 | C71: 0.08 | D71: 0.26 | E71: 0.27 | F71: 0.17 | G71: 0.16
A72: If I would witness an act of corruption, I would feel personally obliged to report it | B72: 0.07 | C72: 0.28 | D72: 0.28 | E72: 0.13 | F72: 0.05 | G72: 0.13
A73: I would report a case of corruption even if I would have to spend a day in court to give evidence | B73: 0.06 | C73: 0.21 | D73: 0.27 | E73: 0.15 | F73: 0.08 | G73: 0.16
A75: Q8 (Figure 7): What is the most effective thing that an ordinary person like you can do to help combat corruption in this country? | B75: % of respondents
A76: Ordinary people cannot do anything | B76: 0.25
A77: Report corruption when you see or experience it | B77: 0.2
A78: Refuse to pay bribes | B78: 0.18
A79: Speak out about the problem | B79: 0.04
A80: Talk to friends and relatives | B80: 0.04
A81: Join or support an anti-corruption organization | B81: 0.04
A82: Vote for clean candidates or parties | B82: 0.03
A83: Sign a petition | B83: 0.03 | V83: 0.4
A84: Participate in protest marches or demonstrations | B84: 0.01
A85: Boycott a corrupt business | B85: 0.01
A86: Other | B86: 0
A87: Don't know | B87: 0.11
A89: Q9 (Figure 8): How would you place your views on this scale? | B89: % of respondents
A90: 1 - There is no problem with the influence of wealthy individuals on the way government is run in this country | B90: 0.08
A91: 2 | B91: 0.02
A92: 3 | B92: 0.03 | V92: 0.48
A93: 4 | B93: 0.03
A94: 5 | B94: 0.06
A95: 6 | B95: 0.1
A96: 7 | B96: 0.05
A97: 8 | B97: 0.05
A98: 9 | B98: 0.06
A99: 10 - Wealthy individuals often use their influence on government for their own interests and there need to be stricter rules to prevent this. | B99: 0.24
A100: Don't know | B100: 0.28
A102: Q9 (Figure 9): How would you place your views on this scale? | B102: % of respondents
A103: 1 - Financial support by companies to political parties and candidates should be banned completely | B103: 0.36
A104: 2 | B104: 0.04
A105: 3 | B105: 0.04
A106: 4 | B106: 0.04
A107: 5 | B107: 0.07
A108: 6 | B108: 0.12
A109: 7 | B109: 0.05
A110: 8 | B110: 0.03
A111: 9 | B111: 0.03
A112: 10 - There should be no limits on financial support by companies to political parties or candidates | B112: 0.07
A113: Don't know | B113: 0.16

Sheet Methodology Note
A1: Montenegro
A2: BACKGROUND
A4: This survey forms part of the Global Corruption Barometer 2016. This spreadsheet contains survey data collected by TNS. This survey has been conducted face to face using a Computer-assisted personal interviewing (CAPI) approach. The sample was distributed across the regions of the country proportionate to population size. Respondents were selected at random from all adult members of their household. The sample is weighted to be nationally representative. Every effort has been made to provide accurate information. All results are based on a sample and are therefore subject to statistical errors normally associated with sample-based information. For further information about the results in this spreadsheet, please contact Coralie Pring Research Coordinator Transparency International (+49)(0)303420416 or email coralie.pring@transparency.org.
A11: EDITOR'S NOTES - all press releases should contain the following information
A12: All figures, unless otherwise stated, are from Transparency International GCB 2016. The survey was carried out face to face using a Computer-assisted personal interviewing (CAPI) approach by TNS. The figures are weighted and are representative of all adults (aged 18+).
A14: Total sample size: | B14: 1503 | C14: adults
A15: Fieldwork was undertaken between: | B15: 2015-11-28 | C15: and | D15: 2016-03-07
A17: NOTE: All press releases or other publications must be checked by Transparency International Secretariat before use.
A19: Any percentages calculated on bases fewer than 60 respondents must not be reported as they do not represent a wide enough cross-section of the target population to be considered statistically reliable.
A21: SUMMARY STATISTICS OF NATIONAL SAMPLE (WEIGHTED)
A23: GENDER | B23: % sample | D23: AGE | E23: % sample
A24: Male | B24: 0.4861993034 | D24: 18 - 24 | E24: 0.1275326493
A25: Female | B25: 0.5138006966 | D25: 25 - 34 | E25: 0.2067608014
D26: 35 - 54 | E26: 0.3396678012
A27: RURAL/URBAN | B27: % sample | D27: 55+ | E27: 0.326038748
A28: Rural | B28: 0.4639832255
A29: Urban | B29: 0.5360167745 | D29: EDUCATION | E29: % sample
D30: No degree/No education | E30: 0.01
A31: MARITAL STATUS | B31: % sample | D31: Primary education | E31: 0.11
A32: Single (never married) | B32: 0.31 | D32: Lower secondary education | E32: 0.13
A33: Married | B33: 0.55 | D33: (Upper) secondary education | E33: 0.44
A34: Widowed | B34: 0.1 | D34: Post-secondary non-tertiary education | E34: 0.08
A35: Divorced | B35: 0.04 | D35: Tertiary education (not a university diploma) | E35: 0.06
A36: Separated | B36: 0 | D36: Bachelor's degree or more | E36: 0.14
D37: Master's degree or PhD | E37: 0.03

Sheet Bribery (hidden)
A1: BRIBERY QUESTIONS
A3: QUESTION 3A | B3: Road police
A4: Interact with the road police | B4: % who had contact | C4: % who paid a bribe
A5: Albania | B5: 0.14 | C5: 0.3
A6: Armenia | B6: 0.31 | C6: 0.22
A7: Azerbaijan | B7: 0.1 | C7: 0.34
A8: Belarus | B8: 0.19 | C8: 0.18
A9: Bosnia and Herz. | B9: 0.36 | C9: 0.24
A10: Bulgaria | B10: 0.18 | C10: 0.13
A11: Croatia | B11: 0.27 | C11: 0.06
A12: Cyprus | B12: 0.14 | C12: 0
A13: Czech Rep. | B13: 0.27 | C13: 0.03
A14: Estonia | B14: 0.25 | C14: 0.01
A15: FYR Macedonia | B15: 0 | C15: 0
A16: Georgia | B16: 0.08 | C16: 0.04
A17: Germany | B17: 0.12 | C17: 0.04
A18: Greece | B18: 0.06 | C18: 0
A19: Hungary | B19: 0.16 | C19: 0.03
A20: Italy | B20: 0.12 | C20: 0.02
A21: Kazakhstan | B21: 0.19 | C21: 0.47
A22: Kosovo | B22: 0.17 | C22: 0.06
A23: Kyrgyz Rep. | B23: 0.23 | C23: 0.48
A24: Latvia | B24: 0.26 | C24: 0.11
A25: Lithuania | B25: 0.25 | C25: 0.06
A26: Moldova | B26: 0 | C26: 0
A27: Mongolia | B27: 0.23 | C27: 0.16
A28: Montenegro | B28: 0.23 | C28: 0.11
A29: Poland | B29: 0.19 | C29: 0.05
A30: Romania | B30: 0.1 | C30: 0.09
A31: Russia | B31: 0.29 | C31: 0.26
A32: Serbia | B32: 0.22 | C32: 0.31
A33: Slovak Rep. | B33: 0.27 | C33: 0.05
A34: Slovenia | B34: 0.13 | C34: 0.01
A35: Tajikistan | B35: 0.15 | C35: 0.64
A36: Turkey | B36: 0.05 | C36: 0.11
A37: Ukraine | B37: 0 | C37: 0
A47: QUESTION 3B | B47: Official documents
A48: Request official documents (e.g. passport, visa, birth or marriage certificate, land register, etc.) from authorities | B48: % who had contact | C48: % who paid a bribe
A49: Albania | B49: 0.3 | C49: 0.14
A50: Armenia | B50: 0.22 | C50: 0.06
A51: Azerbaijan | B51: 0.14 | C51: 0.16
A52: Belarus | B52: 0.22 | C52: 0.05
A53: Bosnia and Herz. | B53: 0.37 | C53: 0.08
A54: Bulgaria | B54: 0.13 | C54: 0.02
A55: Croatia | B55: 0.28 | C55: 0.03
A56: Cyprus | B56: 0.18 | C56: 0.02
A57: Czech Rep. | B57: 0.21 | C57: 0.04
A58: Estonia | B58: 0.38 | C58: 0.01
A59: FYR Macedonia | B59: 0 | C59: 0
A60: Georgia | B60: 0.14 | C60: 0.07
A61: Germany | B61: 0.13 | C61: 0.01
A62: Greece | B62: 0.16 | C62: 0.03
A63: Hungary | B63: 0.16 | C63: 0.02
A64: Italy | B64: 0.2 | C64: 0.05
A65: Kazakhstan | B65: 0.18 | C65: 0.19
A66: Kosovo | B66: 0.41 | C66: 0.05
A67: Kyrgyz Rep. | B67: 0.26 | C67: 0.24
A68: Latvia | B68: 0.33 | C68: 0.01
A69: Lithuania | B69: 0.26 | C69: 0.01
A70: Moldova | B70: 0 | C70: 0
A71: Mongolia | B71: 0.17 | C71: 0.11
A72: Montenegro | B72: 0.23 | C72: 0.05
A73: Poland | B73: 0.15 | C73: 0.01
A74: Romania | B74: 0.08 | C74: 0.04
A75: Russia | B75: 0.14 | C75: 0.12
A76: Serbia | B76: 0.21 | C76: 0.12
A77: Slovak Rep. | B77: 0.18 | C77: 0.07
A78: Slovenia | B78: 0.2 | C78: 0.01
A79: Tajikistan | B79: 0.21 | C79: 0.47
A80: Turkey | B80: 0.1 | C80: 0.12
A81: Ukraine | B81: 0 | C81: 0
A92: QUESTION 3C | B92: Courts | K92: Insert into Country Data if necessary:
A93: Go to courts for a civil matter | B93: % who had contact | C93: % who paid a bribe | E93: More than 60 respondents? | H93: Old results | K93: *this result has been removed due to a low base size of less than 60 respondents
A94: Albania | B94: 0.07 | C94: 0.18 | E94: 98
A95: Armenia | B95: 0.02 | E95: 33 | H95: 0.02 | I95: 0.06
A96: Azerbaijan | B96: 0.03 | E96: 45 | H96: 0.03 | I96: 0.19
A97: Belarus | B97: 0.04 | E97: 58 | H97: 0.04 | I97: 0.04
A98: Bosnia and Herz. | B98: 0.03 | E98: 41 | H98: 0.03 | I98: 0.37
A99: Bulgaria | B99: 0.03 | E99: 47 | H99: 0.03 | I99: 0.05
A100: Croatia | B100: 0.05 | C100: 0.01 | E100: 77
A101: Cyprus | B101: 0.08 | C101: 0.03 | E101: 118
A102: Czech Rep. | B102: 0.03 | E102: 40 | H102: 0.03 | I102: 0
A103: Estonia | B103: 0.01 | E103: 19 | H103: 0.01 | I103: 0
A104: FYR Macedonia | B104: 0 | C104: 0 | E104: 0
A105: Georgia | B105: 0.02 | E105: 33 | H105: 0.02 | I105: 0.07
A106: Germany | B106: 0.04 | E106: 57 | H106: 0.04 | I106: 0
A107: Greece | B107: 0.03 | E107: 44 | H107: 0.03 | I107: 0.01
A108: Hungary | B108: 0.03 | E108: 38 | H108: 0.03 | I108: 0.11
A109: Italy | B109: 0.04 | C109: 0.07 | E109: 65
A110: Kazakhstan | B110: 0.05 | C110: 0.31 | E110: 71
A111: Kosovo | B111: 0.03 | E111: 52 | H111: 0.03 | I111: 0.03
A112: Kyrgyz Rep. | B112: 0.05 | C112: 0.36 | E112: 68
A113: Latvia | B113: 0.03 | E113: 46 | H113: 0.03 | I113: 0.03
A114: Lithuania | B114: 0.03 | E114: 49 | H114: 0.03 | I114: 0.02
A115: Moldova | B115: 0 | C115: 0 | E115: 0
A116: Mongolia | B116: 0.03 | E116: 44 | H116: 0.03 | I116: 0.3
A117: Montenegro | B117: 0.02 | E117: 33 | H117: 0.02 | I117: 0.14
A118: Poland | B118: 0.04 | E118: 59 | H118: 0.04 | I118: 0.02
A119: Romania | B119: 0.03 | E119: 45 | H119: 0.03 | I119: 0.09
A120: Russia | B120: 0.02 | E120: 33 | H120: 0.02 | I120: 0.08
A121: Serbia | B121: 0.03 | E121: 50 | H121: 0.03 | I121: 0.28
A122: Slovak Rep. | B122: 0.02 | E122: 37 | H122: 0.02 | I122: 0.14
A123: Slovenia | B123: 0.08 | C123: 0.04 | E123: 119
A124: Tajikistan | B124: 0.03 | E124: 39 | H124: 0.03 | I124: 0.35
A125: Turkey | B125: 0.06 | C125: 0.2 | E125: 90
A126: Ukraine | B126: 0 | C126: 0 | E126: 0
A134: QUESTION 3D | B134: Public education (primary or secondary)
A135: Receive public education (primary or secondary) | B135: % who had contact | C135: % who paid a bribe
A136: Albania | B136: 0.2 | C136: 0.17
A137: Armenia | B137: 0.09 | C137: 0.11
A138: Azerbaijan | B138: 0.11 | C138: 0.18
A139: Belarus | B139: 0.14 | C139: 0.18
A140: Bosnia and Herz. | B140: 0.21 | C140: 0.06
A141: Bulgaria | B141: 0.12 | C141: 0.07
A142: Croatia | B142: 0.18 | C142: 0.02
A143: Cyprus | B143: 0.15 | C143: 0.01
A144: Czech Rep. | B144: 0.06 | C144: 0.03
A145: Estonia | B145: 0.15 | C145: 0.04
A146: FYR Macedonia | B146: 0 | C146: 0
A147: Georgia | B147: 0.13 | C147: 0.04
A148: Germany | B148: 0.08 | C148: 0
A149: Greece | B149: 0.15 | C149: 0
A150: Hungary | B150: 0.14 | C150: 0.07
A151: Italy | B151: 0.2 | C151: 0.02
A152: Kazakhstan | B152: 0.17 | C152: 0.17
A153: Kosovo | B153: 0.24 | C153: 0.02
A154: Kyrgyz Rep. | B154: 0.25 | C154: 0.13
A155: Latvia | B155: 0.14 | C155: 0.04
A156: Lithuania | B156: 0.1 | C156: 0.05
A157: Moldova | B157: 0 | C157: 0
A158: Mongolia | B158: 0.25 | C158: 0.1
A159: Montenegro | B159: 0.17 | C159: 0.08
A160: Poland | B160: 0.18 | C160: 0.02
A161: Romania | B161: 0.12 | C161: 0.23
A162: Russia | B162: 0.14 | C162: 0.29
A163: Serbia | B163: 0.16 | C163: 0.06
A164: Slovak Rep. | B164: 0.18 | C164: 0.01
A165: Slovenia | B165: 0.2 | C165: 0
A166: Tajikistan | B166: 0.19 | C166: 0.26
A167: Turkey | B167: 0.13 | C167: 0.17
A168: Ukraine | B168: 0 | C168: 0
A176: QUESTION 3E | B176: Public education (vocation)
A177: Receive public education (vocation) | B177: % who had contact | C177: % who paid a bribe | E177: More than 60 respondents? | H177: Old results
A178: Albania | B178: 0.15 | C178: 0.14 | E178: 225
A179: Armenia | B179: 0.01 | E179: 16 | H179: 0.01 | I179: 0.03
A180: Azerbaijan | B180: 0.08 | C180: 0.24 | E180: 122
A181: Belarus | B181: 0.1 | C181: 0.09 | E181: 143
A182: Bosnia and Herz. | B182: 0.14 | C182: 0.08 | E182: 212
A183: Bulgaria | B183: 0.07 | C183: 0.15 | E183: 105
A184: Croatia | B184: 0.13 | C184: 0.01 | E184: 188
A185: Cyprus | B185: 0.02 | E185: 30 | H185: 0.02 | I185: 0
A186: Czech Rep. | B186: 0.04 | E186: 55 | H186: 0.04 | I186: 0.02
A187: Estonia | B187: 0.05 | C187: 0 | E187: 80
A188: FYR Macedonia | B188: 0 | C188: 0 | E188: 0
A189: Georgia | B189: 0.05 | C189: 0.17 | E189: 71
A190: Germany | B190: 0.07 | C190: 0 | E190: 99
A191: Greece | B191: 0.04 | C191: 0 | E191: 61
A192: Hungary | B192: 0.06 | C192: 0.04 | E192: 89
A193: Italy | B193: 0.06 | C193: 0 | E193: 92
A194: Kazakhstan | B194: 0.1 | C194: 0.23 | E194: 144
A195: Kosovo | B195: 0.17 | C195: 0.02 | E195: 259
A196: Kyrgyz Rep. | B196: 0.12 | C196: 0.23 | E196: 177
A197: Latvia | B197: 0.05 | C197: 0 | E197: 72
A198: Lithuania | B198: 0.02 | E198: 37 | H198: 0.02 | I198: 0.09
A199: Moldova | B199: 0 | C199: 0 | E199: 0
A200: Mongolia | B200: 0.08 | C200: 0.08 | E200: 119
A201: Montenegro | B201: 0.15 | C201: 0.07 | E201: 220
A202: Poland | B202: 0.13 | C202: 0.04 | E202: 188
A203: Romania | B203: 0.08 | C203: 0.11 | E203: 116
A204: Russia | B204: 0.09 | C204: 0.24 | E204: 142
A205: Serbia | B205: 0.11 | C205: 0.04 | E205: 160
A206: Slovak Rep. | B206: 0.1 | C206: 0.04 | E206: 156
A207: Slovenia | B207: 0.12 | C207: 0.03 | E207: 174
A208: Tajikistan | B208: 0.1 | C208: 0.45 | E208: 149
A209: Turkey | B209: 0.15 | C209: 0.18 | E209: 232
A210: Ukraine | B210: 0 | C210: 0 | E210: 0
A218: QUESTION 3F | B218: Medical treatment
A219: Receive medical treatment in the public health system | B219: % who had contact | C219: % who paid a bribe
A220: Albania | B220: 0.52 | C220: 0.3
A221: Armenia | B221: 0.6 | C221: 0.2
A222: Azerbaijan | B222: 0.25 | C222: 0.33
A223: Belarus | B223: 0.6 | C223: 0.18
A224: Bosnia and Herz. | B224: 0.56 | C224: 0.2
A225: Bulgaria | B225: 0.59 | C225: 0.16
A226: Croatia | B226: 0.56 | C226: 0.09
A227: Cyprus | B227: 0.54 | C227: 0.02
A228: Czech Rep. | B228: 0.61 | C228: 0.08
A229: Estonia | B229: 0.84 | C229: 0.05
A230: FYR Macedonia | B230: 0 | C230: 0
A231: Georgia | B231: 0.48 | C231: 0.04
A232: Germany | B232: 0.55 | C232: 0.02
A233: Greece | B233: 0.48 | C233: 0.13
A234: Hungary | B234: 0.63 | C234: 0.22
A235: Italy | B235: 0.62 | C235: 0.05
A236: Kazakhstan | B236: 0.48 | C236: 0.2
A237: Kosovo | B237: 0.69 | C237: 0.08
A238: Kyrgyz Rep. | B238: 0.47 | C238: 0.26
A239: Latvia | B239: 0.84 | C239: 0.13
A240: Lithuania | B240: 0.84 | C240: 0.24
A241: Moldova | B241: 0 | C241: 0
... 116 more rows

Sheet EU (hidden)
A1: 1 | B1: 2 | C1: 3 | D1: 4 | E1: 5 | F1: 6 | G1: 7 | H1: 8 | I1: 9 | J1: 10 | K1: 11 | L1: 12 | M1: 13 | N1: 14 | O1: 15 | P1: 16 | Q1: 17
R2: Q1 WESTERN EUROPE DATABASE
A3: QUESTION 4 | R3: Three most important problems
A4: Country | B4: Health | C4: Crime | D4: The economy | E4: Education | F4: Environment | G4: Corruption/ bribery | H4: Immigration | I4: Political instability/ security | J4: Unemployment | K4: Infrastructure/ transportation, roads | L4: Other | M4: No problems | N4: Don’t know
A5: Albania | B5: 0.54 | C5: 0.36 | D5: 0.53 | E5: 0.21 | F5: 0.05 | G5: 0.34 | H5: 0.08 | I5: 0.04 | J5: 0.54 | K5: 0.07 | L5: 0 | M5: 0 | N5: 0.01
A6: Armenia | B6: 0.58 | C6: 0.16 | D6: 0.27 | E6: 0.24 | F6: 0.02 | G6: 0.37 | H6: 0.32 | I6: 0.15 | J6: 0.64 | K6: 0.04 | L6: 0.01 | M6: 0 | N6: 0.01
A7: Azerbaijan | B7: 0.08 | C7: 0.09 | D7: 0.08 | E7: 0.21 | F7: 0.03 | G7: 0.21 | H7: 0.01 | I7: 0.05 | J7: 0.59 | K7: 0.02 | L7: 0.68 | M7: 0 | N7: 0.06
A8: Belarus | B8: 0.69 | C8: 0.31 | D8: 0.84 | E8: 0.23 | F8: 0.14 | G8: 0.14 | H8: 0.02 | I8: 0.11 | J8: 0.41 | K8: 0.05 | L8: 0 | M8: 0 | N8: 0.01
A9: Bosnia and Herz. | B9: 0.2 | C9: 0.61 | D9: 0.34 | E9: 0.12 | F9: 0.02 | G9: 0.55 | H9: 0.05 | I9: 0.27 | J9: 0.63 | K9: 0.05 | L9: 0 | M9: 0 | N9: 0.01
A10: Bulgaria | B10: 0.63 | C10: 0.38 | D10: 0.5 | E10: 0.2 | F10: 0.03 | G10: 0.36 | H10: 0.15 | I10: 0.11 | J10: 0.39 | K10: 0.06 | L10: 0.01 | M10: 0 | N10: 0.01
A11: Croatia | B11: 0.25 | C11: 0.4 | D11: 0.47 | E11: 0.14 | F11: 0.02 | G11: 0.51 | H11: 0.13 | I11: 0.15 | J11: 0.66 | K11: 0.05 | L11: 0.01 | M11: 0 | N11: 0
A12: Cyprus | B12: 0.49 | C12: 0.15 | D12: 0.63 | E12: 0.19 | F12: 0.02 | G12: 0.49 | H12: 0.12 | I12: 0.14 | J12: 0.62 | K12: 0.01 | L12: 0.05 | M12: 0 | N12: 0
A13: Czech Rep. | B13: 0.32 | C13: 0.37 | D13: 0.28 | E13: 0.19 | F13: 0.15 | G13: 0.41 | H13: 0.45 | I13: 0.15 | J13: 0.24 | K13: 0.08 | L13: 0 | M13: 0 | N13: 0
A14: Estonia | B14: 0.59 | C14: 0.16 | D14: 0.47 | E14: 0.29 | F14: 0.07 | G14: 0.25 | H14: 0.25 | I14: 0.23 | J14: 0.44 | K14: 0.06 | L14: 0.01 | M14: 0.01 | N14: 0
A15: Georgia | B15: 0.78 | C15: 0.18 | D15: 0.56 | E15: 0.3 | F15: 0.04 | G15: 0.12 | H15: 0.05 | I15: 0.14 | J15: 0.76 | K15: 0.05 | L15: 0 | M15: 0 | N15: 0
A16: Germany | B16: 0.39 | C16: 0.29 | D16: 0.39 | E16: 0.42 | F16: 0.31 | G16: 0.02 | H16: 0.69 | I16: 0.27 | J16: 0.17 | K16: 0.02 | L16: 0.01 | M16: 0 | N16: 0
A17: Greece | B17: 0.44 | C17: 0.05 | D17: 0.74 | E17: 0.2 | F17: 0.02 | G17: 0.24 | H17: 0.36 | I17: 0.14 | J17: 0.71 | K17: 0 | L17: 0.02 | M17: 0 | N17: 0
A18: Hungary | B18: 0.67 | C18: 0.29 | D18: 0.3 | E18: 0.19 | F18: 0.09 | G18: 0.28 | H18: 0.29 | I18: 0.04 | J18: 0.46 | K18: 0.08 | L18: 0 | M18: 0.01 | N18: 0
A19: Italy | B19: 0.35 | C19: 0.22 | D19: 0.35 | E19: 0.15 | F19: 0.05 | G19: 0.28 | H19: 0.48 | I19: 0.22 | J19: 0.64 | K19: 0.09 | L19: 0.01 | M19: 0 | N19: 0
A20: Kazakhstan | B20: 0.67 | C20: 0.31 | D20: 0.49 | E20: 0.3 | F20: 0.1 | G20: 0.37 | H20: 0.01 | I20: 0.1 | J20: 0.43 | K20: 0.16 | L20: 0 | M20: 0 | N20: 0.01
A21: Kosovo | B21: 0.41 | C21: 0.25 | D21: 0.37 | E21: 0.14 | F21: 0.02 | G21: 0.65 | H21: 0.04 | I21: 0.15 | J21: 0.7 | K21: 0.02 | L21: 0.01 | M21: 0 | N21: 0.01
A22: Kyrgyz Rep. | B22: 0.67 | C22: 0.29 | D22: 0.52 | E22: 0.35 | F22: 0.08 | G22: 0.47 | H22: 0.05 | I22: 0.09 | J22: 0.39 | K22: 0.09 | L22: 0 | M22: 0 | N22: 0
A23: Latvia | B23: 0.66 | C23: 0.12 | D23: 0.46 | E23: 0.28 | F23: 0.02 | G23: 0.35 | H23: 0.16 | I23: 0.22 | J23: 0.37 | K23: 0.18 | L23: 0.01 | M23: 0 | N23: 0.01
A24: Lithuania | B24: 0.32 | C24: 0.29 | D24: 0.43 | E24: 0.19 | F24: 0.02 | G24: 0.54 | H24: 0.22 | I24: 0.18 | J24: 0.6 | K24: 0.03 | L24: 0.02 | M24: 0 | N24: 0.01
A25: Mongolia | B25: 0.66 | C25: 0.15 | D25: 0.46 | E25: 0.39 | F25: 0.11 | G25: 0.27 | H25: 0.02 | I25: 0.27 | J25: 0.46 | K25: 0.11 | L25: 0 | M25: 0 | N25: 0
A26: Montenegro | B26: 0.41 | C26: 0.42 | D26: 0.31 | E26: 0.2 | F26: 0.08 | G26: 0.31 | H26: 0.01 | I26: 0.08 | J26: 0.68 | K26: 0.07 | L26: 0.01 | M26: 0 | N26: 0.03
A27: Poland | B27: 0.81 | C27: 0.22 | D27: 0.23 | E27: 0.2 | F27: 0.09 | G27: 0.15 | H27: 0.28 | I27: 0.16 | J27: 0.46 | K27: 0.18 | L27: 0.01 | M27: 0 | N27: 0.01
A28: Romania | B28: 0.71 | C28: 0.13 | D28: 0.4 | E28: 0.47 | F28: 0.06 | G28: 0.49 | H28: 0.07 | I28: 0.07 | J28: 0.18 | K28: 0.21 | L28: 0.01 | M28: 0 | N28: 0.01
A29: Russia | B29: 0.56 | C29: 0.23 | D29: 0.61 | E29: 0.26 | F29: 0.08 | G29: 0.39 | H29: 0.06 | I29: 0.14 | J29: 0.26 | K29: 0.15 | L29: 0.01 | M29: 0 | N29: 0.01
A30: Serbia | B30: 0.25 | C30: 0.38 | D30: 0.5 | E30: 0.14 | F30: 0.05 | G30: 0.39 | H30: 0.13 | I30: 0.2 | J30: 0.52 | K30: 0.08 | L30: 0 | M30: 0 | N30: 0.01
A31: Slovak Rep. | B31: 0.63 | C31: 0.13 | D31: 0.34 | E31: 0.25 | F31: 0.13 | G31: 0.38 | H31: 0.21 | I31: 0.1 | J31: 0.48 | K31: 0.1 | L31: 0.01 | M31: 0 | N31: 0.01
A32: Slovenia | B32: 0.21 | C32: 0.29 | D32: 0.44 | E32: 0.08 | F32: 0.05 | G32: 0.59 | H32: 0.25 | I32: 0.24 | J32: 0.45 | K32: 0.07 | L32: 0.02 | M32: 0 | N32: 0.02
A33: Tajikistan | B33: 0.46 | C33: 0.21 | D33: 0.5 | E33: 0.37 | F33: 0.08 | G33: 0.18 | H33: 0.42 | I33: 0.05 | J33: 0.56 | K33: 0.05 | L33: 0.02 | M33: 0 | N33: 0.01
A34: Turkey | B34: 0.51 | C34: 0.35 | D34: 0.58 | E34: 0.4 | F34: 0.05 | G34: 0.22 | H34: 0.11 | I34: 0.16 | J34: 0.28 | K34: 0.07 | L34: 0.01 | M34: 0 | N34: 0
R35: Total involved: most of them and all of them
R36: Q2A1 WESTERN EUROPE DATABASE
A37: QUESTION 1 | B37: A | R37: President/Prime Minister and officials in his office
A38: Country | B38: None | C38: Some of them | D38: Most of them | E38: All of them | F38: Don't know | G38: Haven't heard enough to say | H38: Total involved | I38: Don't know + Haven't heard
A39: Albania | B39: 0.07 | C39: 0.28 | D39: 0.21 | E39: 0.15 | F39: 0.14 | G39: 0.16 | H39: 0.36 | I39: =SUM(F39+G39) -> 0.3
A40: Armenia | B40: 0.05 | C40: 0.14 | D40: 0.17 | E40: 0.27 | F40: 0.02 | G40: 0.34 | H40: 0.44 | I40: =SUM(F40+G40) -> 0.36
A41: Azerbaijan | B41: 0.32 | C41: 0.14 | D41: 0.08 | E41: 0.02 | F41: 0.25 | G41: 0.2 | H41: 0.1 | I41: 0.45
A42: Belarus | B42: 0.21 | C42: 0.22 | D42: 0.14 | E42: 0.04 | F42: 0.17 | G42: 0.22 | H42: 0.18 | I42: 0.39
A43: Bosnia and Herz. | B43: 0.02 | C43: 0.21 | D43: 0.26 | E43: 0.28 | F43: 0.06 | G43: 0.18 | H43: 0.54 | I43: 0.24
A44: Bulgaria | B44: 0.07 | C44: 0.16 | D44: 0.12 | E44: 0.08 | F44: 0.17 | G44: 0.4 | H44: 0.2 | I44: 0.57
A45: Croatia | B45: 0.13 | C45: 0.2 | D45: 0.12 | E45: 0.05 | F45: 0.13 | G45: 0.37 | H45: 0.17 | I45: 0.5
A46: Cyprus | B46: 0.06 | C46: 0.38 | D46: 0.15 | E46: 0.08 | F46: 0.1 | G46: 0.24 | H46: 0.23 | I46: 0.34
A47: Czech Rep. | B47: 0.17 | C47: 0.37 | D47: 0.08 | E47: 0.02 | F47: 0.08 | G47: 0.28 | H47: 0.1 | I47: 0.36
A48: Estonia | B48: 0.16 | C48: 0.24 | D48: 0.05 | E48: 0.01 | F48: 0.17 | G48: 0.37 | H48: 0.06 | I48: 0.54
A49: Georgia | B49: 0.12 | C49: 0.12 | D49: 0.04 | E49: 0.03 | F49: 0.41 | G49: 0.28 | H49: 0.07 | I49: 0.69
A50: Germany | B50: 0.49 | C50: 0.24 | D50: 0.06 | E50: 0.01 | F50: 0.07 | G50: 0.13 | H50: 0.07 | I50: 0.2
A51: Greece | B51: 0.05 | C51: 0.37 | D51: 0.19 | E51: 0.08 | F51: 0.07 | G51: 0.24 | H51: 0.27 | I51: 0.31
A52: Hungary | B52: 0.07 | C52: 0.29 | D52: 0.17 | E52: 0.12 | F52: 0.09 | G52: 0.26 | H52: 0.29 | I52: 0.35
A53: Italy | B53: 0.2 | C53: 0.36 | D53: 0.16 | E53: 0.06 | F53: 0.08 | G53: 0.14 | H53: 0.22 | I53: 0.22
A54: Kazakhstan | B54: 0.21 | C54: 0.22 | D54: 0.07 | E54: 0.04 | F54: 0.21 | G54: 0.25 | H54: 0.11 | I54: 0.46
A55: Kosovo | B55: 0.03 | C55: 0.28 | D55: 0.26 | E55: 0.14 | F55: 0.12 | G55: 0.18 | H55: 0.4 | I55: 0.3
A56: Kyrgyz Rep. | B56: 0.12 | C56: 0.32 | D56: 0.24 | E56: 0.11 | F56: 0.12 | G56: 0.08 | H56: 0.35 | I56: 0.2
A57: Latvia | B57: 0.1 | C57: 0.26 | D57: 0.1 | E57: 0.04 | F57: 0.16 | G57: 0.35 | H57: 0.14 | I57: 0.51
A58: Lithuania | B58: 0.05 | C58: 0.33 | D58: 0.1 | E58: 0.03 | F58: 0.15 | G58: 0.34 | H58: 0.13 | I58: 0.49
A59: Mongolia | B59: 0.13 | C59: 0.37 | D59: 0.23 | E59: 0.11 | F59: 0.07 | G59: 0.09 | H59: 0.34 | I59: 0.16
A60: Montenegro | B60: 0.11 | C60: 0.13 | D60: 0.1 | E60: 0.08 | F60: 0.22 | G60: 0.36 | H60: 0.18 | I60: 0.58
A61: Poland | B61: 0.21 | C61: 0.15 | D61: 0.08 | E61: 0.01 | F61: 0.16 | G61: 0.39 | H61: 0.09 | I61: 0.55
A62: Romania | B62: 0.09 | C62: 0.22 | D62: 0.2 | E62: 0.1 | F62: 0.17 | G62: 0.22 | H62: 0.3 | I62: 0.39
A63: Russia | B63: 0.22 | C63: 0.2 | D63: 0.07 | E63: 0.04 | F63: 0.2 | G63: 0.27 | H63: 0.11 | I63: 0.47
A64: Serbia | B64: 0.17 | C64: 0.19 | D64: 0.17 | E64: 0.1 | F64: 0.12 | G64: 0.24 | H64: 0.27 | I64: 0.36
A65: Slovak Rep. | B65: 0.02 | C65: 0.26 | D65: 0.25 | E65: 0.14 | F65: 0.12 | G65: 0.21 | H65: 0.39 | I65: 0.33
A66: Slovenia | B66: 0.13 | C66: 0.41 | D66: 0.11 | E66: 0.06 | F66: 0.11 | G66: 0.18 | H66: 0.17 | I66: 0.29
A67: Tajikistan | B67: 0.67 | C67: 0.07 | D67: 0.02 | E67: 0.01 | F67: 0.07 | G67: 0.16 | H67: 0.03 | I67: 0.23
A68: Turkey | B68: 0.19 | C68: 0.24 | D68: 0.15 | E68: 0.23 | F68: 0.1 | G68: 0.1 | H68: 0.38 | I68: 0.2
R69: Q2B WESTERN EUROPE DATABASE
B70: B | R70: Members of the parliament
A71: Country | B71: None | C71: Some of them | D71: Most of them | E71: All of them | F71: Don't know | G71: Haven't heard enough to say | H71: Total involved | I71: Don't know + Haven't heard
A72: Albania | B72: 0.01 | C72: 0.3 | D72: 0.34 | E72: 0.21 | F72: 0.07 | G72: 0.07 | H72: =SUM(D72+E72) -> 0.55 | I72: =SUM(F72+G72) -> 0.14
A73: Armenia | B73: 0.06 | C73: 0.16 | D73: 0.2 | E73: 0.23 | F73: 0.02 | G73: 0.34 | H73: =SUM(D73+E73) -> 0.43 | I73: =SUM(F73+G73) -> 0.36
A74: Azerbaijan | B74: 0.24 | C74: 0.16 | D74: 0.1 | E74: 0.02 | F74: 0.27 | G74: 0.21 | H74: 0.12 | I74: 0.48
A75: Belarus | B75: 0.13 | C75: 0.27 | D75: 0.17 | E75: 0.04 | F75: 0.17 | G75: 0.21 | H75: 0.21 | I75: 0.38
A76: Bosnia and Herz. | B76: 0.02 | C76: 0.21 | D76: 0.29 | E76: 0.25 | F76: 0.06 | G76: 0.18 | H76: 0.54 | I76: 0.24
A77: Bulgaria | B77: 0.01 | C77: 0.23 | D77: 0.27 | E77: 0.14 | F77: 0.12 | G77: 0.23 | H77: 0.41 | I77: 0.35
A78: Croatia | B78: 0.05 | C78: 0.32 | D78: 0.2 | E78: 0.08 | F78: 0.1 | G78: 0.26 | H78: 0.28 | I78: 0.36
A79: Cyprus | B79: 0.01 | C79: 0.49 | D79: 0.24 | E79: 0.08 | F79: 0.08 | G79: 0.1 | H79: 0.32 | I79: 0.18
A80: Czech Rep. | B80: 0.02 | C80: 0.43 | D80: 0.2 | E80: 0.05 | F80: 0.06 | G80: 0.23 | H80: 0.25 | I80: 0.29
A81: Estonia | B81: 0.05 | C81: 0.43 | D81: 0.08 | E81: 0.01 | F81: 0.15 | G81: 0.28 | H81: 0.09 | I81: 0.43
A82: Georgia | B82: 0.09 | C82: 0.17 | D82: 0.05 | E82: 0.04 | F82: 0.4 | G82: 0.25 | H82: 0.09 | I82: 0.65
A83: Germany | B83: 0.38 | C83: 0.36 | D83: 0.05 | E83: 0.01 | F83: 0.07 | G83: 0.13 | H83: 0.06 | I83: 0.2
A84: Greece | B84: 0 | C84: 0.44 | D84: 0.39 | E84: 0.1 | F84: 0.03 | G84: 0.03 | H84: 0.49 | I84: 0.06
A85: Hungary | B85: 0.04 | C85: 0.33 | D85: 0.21 | E85: 0.11 | F85: 0.08 | G85: 0.22 | H85: 0.32 | I85: 0.3
A86: Italy | B86: 0.03 | C86: 0.43 | D86: 0.34 | E86: 0.12 | F86: 0.05 | G86: 0.04 | H86: 0.46 | I86: 0.09
A87: Kazakhstan | B87: 0.13 | C87: 0.27 | D87: 0.11 | E87: 0.04 | F87: 0.21 | G87: 0.23 | H87: 0.15 | I87: 0.44
A88: Kosovo | B88: 0.01 | C88: 0.28 | D88: 0.34 | E88: 0.12 | F88: 0.11 | G88: 0.13 | H88: 0.46 | I88: 0.24
A89: Kyrgyz Rep. | B89: 0.04 | C89: 0.29 | D89: 0.34 | E89: 0.16 | F89: 0.1 | G89: 0.06 | H89: 0.5 | I89: 0.16
A90: Latvia | B90: 0.02 | C90: 0.42 | D90: 0.19 | E90: 0.04 | F90: 0.12 | G90: 0.21 | H90: 0.23 | I90: 0.33
A91: Lithuania | B91: 0.01 | C91: 0.38 | D91: 0.16 | E91: 0.03 | F91: 0.13 | G91: 0.29 | H91: 0.19 | I91: 0.42
A92: Mongolia | B92: 0.06 | C92: 0.38 | D92: 0.31 | E92: 0.15 | F92: 0.04 | G92: 0.06 | H92: 0.46 | I92: 0.1
A93: Montenegro | B93: 0.08 | C93: 0.17 | D93: 0.11 | E93: 0.07 | F93: 0.22 | G93: 0.35 | H93: 0.18 | I93: 0.57
A94: Poland | B94: 0.07 | C94: 0.34 | D94: 0.14 | E94: 0.02 | F94: 0.13 | G94: 0.31 | H94: 0.16 | I94: 0.44
A95: Romania | B95: 0.03 | C95: 0.2 | D95: 0.37 | E95: 0.18 | F95: 0.12 | G95: 0.12 | H95: 0.55 | I95: 0.24
A96: Russia | B96: 0.09 | C96: 0.28 | D96: 0.12 | E96: 0.07 | F96: 0.19 | G96: 0.26 | H96: 0.19 | I96: 0.45
A97: Serbia | B97: 0.08 | C97: 0.29 | D97: 0.18 | E97: 0.09 | F97: 0.13 | G97: 0.22 | H97: 0.27 | I97: 0.35
A98: Slovak Rep. | B98: 0.01 | C98: 0.27 | D98: 0.29 | E98: 0.15 | F98: 0.11 | G98: 0.18 | H98: 0.44 | I98: 0.29
A99: Slovenia | B99: 0.01 | C99: 0.52 | D99: 0.18 | E99: 0.08 | F99: 0.09 | G99: 0.13 | H99: 0.26 | I99: 0.22
A100: Tajikistan | B100: 0.47 | C100: 0.16 | D100: 0.05 | E100: 0.01 | F100: 0.1 | G100: 0.21 | H100: 0.06 | I100: 0.31
A101: Turkey | B101: 0.14 | C101: 0.28 | D101: 0.25 | E101: 0.14 | F101: 0.1 | G101: 0.09 | H101: 0.39 | I101: 0.19
R102: Q2C WESTERN EUROPE DATABASE
B103: C | R103: Government officials
A104: Country | B104: None | C104: Some of them | D104: Most of them | E104: All of them | F104: Don't know | G104: Haven't heard enough to say | H104: Total involved | I104: Don't know + Haven't heard
A105: Albania | B105: 0.02 | C105: 0.36 | D105: 0.27 | E105: 0.18 | F105: 0.07 | G105: 0.1 | H105: =SUM(D105+E105) -> 0.45 | I105: =SUM(F105+G105) -> 0.17
A106: Armenia | B106: 0.05 | C106: 0.15 | D106: 0.21 | E106: 0.24 | F106: 0.02 | G106: 0.34 | H106: =SUM(D106+E106) -> 0.45 | I106: =SUM(F106+G106) -> 0.36
A107: Azerbaijan | B107: 0.22 | C107: 0.18 | D107: 0.1 | E107: 0.02 | F107: 0.28 | G107: 0.2 | H107: 0.12 | I107: 0.48
A108: Belarus | B108: 0.08 | C108: 0.32 | D108: 0.27 | E108: 0.05 | F108: 0.12 | G108: 0.15 | H108: 0.32 | I108: 0.27
A109: Bosnia and Herz. | B109: 0.02 | C109: 0.2 | D109: 0.3 | E109: 0.25 | F109: 0.06 | G109: 0.17 | H109: 0.55 | I109: 0.23
A110: Bulgaria | B110: 0.02 | C110: 0.25 | D110: 0.21 | E110: 0.1 | F110: 0.14 | G110: 0.29 | H110: 0.31 | I110: 0.43
A111: Croatia | B111: 0.04 | C111: 0.34 | D111: 0.21 | E111: 0.07 | F111: 0.09 | G111: 0.25 | H111: 0.28 | I111: 0.34
A112: Cyprus | B112: 0.01 | C112: 0.5 | D112: 0.22 | E112: 0.08 | F112: 0.07 | G112: 0.11 | H112: 0.3 | I112: 0.18
A113: Czech Rep. | B113: 0.02 | C113: 0.43 | D113: 0.23 | E113: 0.05 | F113: 0.06 | G113: 0.21 | H113: 0.28 | I113: 0.27
A114: Estonia | B114: 0.06 | C114: 0.45 | D114: 0.06 | E114: 0.01 | F114: 0.15 | G114: 0.27 | H114: 0.07 | I114: 0.42
A115: Georgia | B115: 0.1 | C115: 0.18 | D115: 0.06 | E115: 0.03 | F115: 0.4 | G115: 0.24 | H115: 0.09 | I115: 0.64
A116: Germany | B116: 0.32 | C116: 0.41 | D116: 0.05 | E116: 0.01 | F116: 0.07 | G116: 0.15 | H116: 0.06 | I116: 0.22
A117: Greece | B117: 0.01 | C117: 0.47 | D117: 0.33 | E117: 0.08 | F117: 0.03 | G117: 0.08 | H117: 0.41 | I117: 0.11
A118: Hungary | B118: 0.05 | C118: 0.33 | D118: 0.18 | E118: 0.1 | F118: 0.09 | G118: 0.24 | H118: 0.28 | I118: 0.33
A119: Italy | B119: 0.03 | C119: 0.47 | D119: 0.31 | E119: 0.09 | F119: 0.05 | G119: 0.05 | H119: 0.4 | I119: 0.1
A120: Kazakhstan | B120: 0.08 | C120: 0.38 | D120: 0.19 | E120: 0.05 | F120: 0.17 | G120: 0.14 | H120: 0.24 | I120: 0.31
A121: Kosovo | B121: 0.01 | C121: 0.28 | D121: 0.32 | E121: 0.14 | F121: 0.11 | G121: 0.13 | H121: 0.46 | I121: 0.24
A122: Kyrgyz Rep. | B122: 0.04 | C122: 0.27 | D122: 0.38 | E122: 0.17 | F122: 0.09 | G122: 0.05 | H122: 0.55 | I122: 0.14
A123: Latvia | B123: 0.04 | C123: 0.41 | D123: 0.16 | E123: 0.04 | F123: 0.12 | G123: 0.22 | H123: 0.2 | I123: 0.34
A124: Lithuania | B124: 0.01 | C124: 0.41 | D124: 0.13 | E124: 0.03 | F124: 0.12 | G124: 0.29 | H124: 0.16 | I124: 0.41
A125: Mongolia | B125: 0.06 | C125: 0.44 | D125: 0.28 | E125: 0.12 | F125: 0.05 | G125: 0.05 | H125: 0.4 | I125: 0.1
A126: Montenegro | B126: 0.08 | C126: 0.16 | D126: 0.12 | E126: 0.08 | F126: 0.22 | G126: 0.34 | H126: 0.2 | I126: 0.56
A127: Poland | B127: 0.06 | C127: 0.33 | D127: 0.14 | E127: 0.02 | F127: 0.12 | G127: 0.33 | H127: 0.16 | I127: 0.45
A128: Romania | B128: 0.03 | C128: 0.24 | D128: 0.33 | E128: 0.14 | F128: 0.13 | G128: 0.13 | H128: 0.47 | I128: 0.26
A129: Russia | B129: 0.01 | C129: 0.32 | D129: 0.27 | E129: 0.11 | F129: 0.13 | G129: 0.16 | H129: 0.38 | I129: 0.29
A130: Serbia | B130: 0.06 | C130: 0.3 | D130: 0.22 | E130: 0.1 | F130: 0.12 | G130: 0.21 | H130: 0.32 | I130: 0.33
A131: Slovak Rep. | B131: 0 | C131: 0.3 | D131: 0.27 | E131: 0.11 | F131: 0.12 | G131: 0.19 | H131: 0.38 | I131: 0.31
A132: Slovenia | B132: 0.02 | C132: 0.51 | D132: 0.16 | E132: 0.06 | F132: 0.1 | G132: 0.14 | H132: 0.22 | I132: 0.24
A133: Tajikistan | B133: 0.37 | C133: 0.24 | D133: 0.08 | E133: 0.01 | F133: 0.1 | G133: 0.2 | H133: 0.09 | I133: 0.3
A134: Turkey | B134: 0.14 | C134: 0.26 | D134: 0.25 | E134: 0.15 | F134: 0.09 | G134: 0.1 | H134: 0.4 | I134: 0.19
R135: Q2D WESTERN EUROPE DATABASE
B136: D | R136: Local government representatives
A137: Country | B137: None | C137: Some of them | D137: Most of them | E137: All of them | F137: Don't know | G137: Haven't heard enough to say | H137: Total involved | I137: Don't know + Haven't heard
A138: Albania | B138: 0.01 | C138: 0.38 | D138: 0.27 | E138: 0.15 | F138: 0.08 | G138: 0.1 | H138: =SUM(D138+E138) -> 0.42 | I138: =SUM(F138+G138) -> 0.18
A139: Armenia | B139: 0.1 | C139: 0.17 | D139: 0.17 | E139: 0.2 | F139: 0.01 | G139: 0.34 | H139: =SUM(D139+E139) -> 0.37 | I139: =SUM(F139+G139) -> 0.35
A140: Azerbaijan | B140: 0.22 | C140: 0.17 | D140: 0.11 | E140: 0.03 | F140: 0.28 | G140: 0.19 | H140: 0.14 | I140: 0.47
A141: Belarus | B141: 0.06 | C141: 0.34 | D141: 0.26 | E141: 0.06 | F141: 0.12 | G141: 0.16 | H141: 0.32 | I141: 0.28
A142: Bosnia and Herz. | B142: 0.02 | C142: 0.24 | D142: 0.28 | E142: 0.23 | F142: 0.06 | G142: 0.17 | H142: 0.51 | I142: 0.23
A143: Bulgaria | B143: 0.02 | C143: 0.26 | D143: 0.21 | E143: 0.08 | F143: 0.12 | G143: 0.3 | H143: 0.29 | I143: 0.42
A144: Croatia | B144: 0.04 | C144: 0.33 | D144: 0.22 | E144: 0.07 | F144: 0.1 | G144: 0.25 | H144: 0.29 | I144: 0.35
A145: Cyprus | B145: 0.03 | C145: 0.48 | D145: 0.18 | E145: 0.06 | F145: 0.1 | G145: 0.14 | H145: 0.24 | I145: 0.24
A146: Czech Rep. | B146: 0.1 | C146: 0.44 | D146: 0.12 | E146: 0.02 | F146: 0.09 | G146: 0.23 | H146: 0.14 | I146: 0.32
A147: Estonia | B147: 0.1 | C147: 0.39 | D147: 0.05 | E147: 0.01 | F147: 0.16 | G147: 0.29 | H147: 0.06 | I147: 0.45
A148: Georgia | B148: 0.13 | C148: 0.14 | D148: 0.04 | E148: 0.03 | F148: 0.41 | G148: 0.26 | H148: 0.07 | I148: 0.67
A149: Germany | B149: 0.39 | C149: 0.33 | D149: 0.05 | E149: 0.01 | F149: 0.08 | G149: 0.14 | H149: 0.06 | I149: 0.22
A150: Greece | B150: 0.01 | C150: 0.5 | D150: 0.24 | E150: 0.06 | F150: 0.05 | G150: 0.14 | H150: 0.3 | I150: 0.19
A151: Hungary | B151: 0.14 | C151: 0.33 | D151: 0.1 | E151: 0.06 | F151: 0.09 | G151: 0.28 | H151: 0.16 | I151: 0.37
A152: Italy | B152: 0.06 | C152: 0.5 | D152: 0.27 | E152: 0.05 | F152: 0.05 | G152: 0.08 | H152: 0.32 | I152: 0.13
A153: Kazakhstan | B153: 0.07 | C153: 0.39 | D153: 0.18 | E153: 0.06 | F153: 0.16 | G153: 0.13 | H153: 0.24 | I153: 0.29
A154: Kosovo | B154: 0.01 | C154: 0.3 | D154: 0.29 | E154: 0.13 | F154: 0.12 | G154: 0.15 | H154: 0.42 | I154: 0.27
A155: Kyrgyz Rep. | B155: 0.08 | C155: 0.28 | D155: 0.34 | E155: 0.17 | F155: 0.09 | G155: 0.05 | H155: 0.51 | I155: 0.14
A156: Latvia | B156: 0.09 | C156: 0.4 | D156: 0.11 | E156: 0.03 | F156: 0.12 | G156: 0.26 | H156: 0.14 | I156: 0.38
A157: Lithuania | B157: 0.05 | C157: 0.38 | D157: 0.12 | E157: 0.02 | F157: 0.13 | G157: 0.31 | H157: 0.14 | I157: 0.44
A158: Mongolia | B158: 0.15 | C158: 0.43 | D158: 0.21 | E158: 0.09 | F158: 0.06 | G158: 0.07 | H158: 0.3 | I158: 0.13
A159: Montenegro | B159: 0.08 | C159: 0.19 | D159: 0.1 | E159: 0.08 | F159: 0.21 | G159: 0.34 | H159: 0.18 | I159: 0.55
A160: Poland | B160: 0.06 | C160: 0.38 | D160: 0.12 | E160: 0.01 | F160: 0.13 | G160: 0.31 | H160: 0.13 | I160: 0.44
A161: Romania | B161: 0.06 | C161: 0.27 | D161: 0.26 | E161: 0.12 | F161: 0.15 | G161: 0.14 | H161: 0.38 | I161: 0.29
A162: Russia | B162: 0.01 | C162: 0.32 | D162: 0.22 | E162: 0.11 | F162: 0.12 | G162: 0.22 | H162: 0.33 | I162: 0.34
A163: Serbia | B163: 0.06 | C163: 0.28 | D163: 0.22 | E163: 0.11 | F163: 0.13 | G163: 0.2 | H163: 0.33 | I163: 0.33
A164: Slovak Rep. | B164: 0.06 | C164: 0.29 | D164: 0.18 | E164: 0.08 | F164: 0.17 | G164: 0.22 | H164: 0.26 | I164: 0.39
A165: Slovenia | B165: 0.05 | C165: 0.48 | D165: 0.14 | E165: 0.06 | F165: 0.12 | G165: 0.16 | H165: 0.2 | I165: 0.28
A166: Tajikistan | B166: 0.32 | C166: 0.31 | D166: 0.1 | E166: 0.02 | F166: 0.09 | G166: 0.16 | H166: 0.12 | I166: 0.25
A167: Turkey | B167: 0.13 | C167: 0.27 | D167: 0.25 | E167: 0.14 | F167: 0.1 | G167: 0.12 | H167: 0.39 | I167: 0.22
R168: Q2E WESTERN EUROPE DATABASE
B169: E | R169: Tax officials
A170: Country | B170: None | C170: Some of them | D170: Most of them | E170: All of them | F170: Don't know | G170: Haven't heard enough to say | H170: Total involved | I170: Don't know + Haven't heard
A171: Albania | B171: 0.02 | C171: 0.34 | D171: 0.26 | E171: 0.17 | F171: 0.09 | G171: 0.11 | H171: =SUM(D171+E171) -> 0.43 | I171: =SUM(F171+G171) -> 0.2
A172: Armenia | B172: 0.06 | C172: 0.15 | D172: 0.19 | E172: 0.25 | F172: 0.02 | G172: 0.34 | H172: =SUM(D172+E172) -> 0.44 | I172: =SUM(F172+G172) -> 0.36
A173: Azerbaijan | B173: 0.21 | C173: 0.14 | D173: 0.14 | E173: 0.04 | F173: 0.29 | G173: 0.19 | H173: 0.18 | I173: 0.48
A174: Belarus | B174: 0.06 | C174: 0.35 | D174: 0.25 | E174: 0.06 | F174: 0.13 | G174: 0.17 | H174: 0.31 | I174: 0.3
A175: Bosnia and Herz. | B175: 0.02 | C175: 0.23 | D175: 0.29 | E175: 0.23 | F175: 0.06 | G175: 0.17 | H175: 0.52 | I175: 0.23
A176: Bulgaria | B176: 0.02 | C176: 0.26 | D176: 0.22 | E176: 0.1 | F176: 0.14 | G176: 0.26 | H176: 0.32 | I176: 0.4
A177: Croatia | B177: 0.05 | C177: 0.35 | D177: 0.18 | E177: 0.07 | F177: 0.1 | G177: 0.26 | H177: 0.25 | I177: 0.36
A178: Cyprus | B178: 0.02 | C178: 0.47 | D178: 0.19 | E178: 0.06 | F178: 0.08 | G178: 0.18 | H178: 0.25 | I178: 0.26
A179: Czech Rep. | B179: 0.08 | C179: 0.44 | D179: 0.11 | E179: 0.03 | F179: 0.1 | G179: 0.24 | H179: 0.14 | I179: 0.34
A180: Estonia | B180: 0.19 | C180: 0.19 | D180: 0.03 | E180: 0 | F180: 0.21 | G180: 0.38 | H180: 0.03 | I180: 0.59
A181: Georgia | B181: 0.11 | C181: 0.15 | D181: 0.04 | E181: 0.02 | F181: 0.42 | G181: 0.26 | H181: 0.06 | I181: 0.68
A182: Germany | B182: 0.39 | C182: 0.33 | D182: 0.04 | E182: 0.02 | F182: 0.08 | G182: 0.14 | H182: 0.06 | I182: 0.22
A183: Greece | B183: 0 | C183: 0.53 | D183: 0.29 | E183: 0.08 | F183: 0.03 | G183: 0.06 | H183: 0.37 | I183: 0.09
A184: Hungary | B184: 0.06 | C184: 0.36 | D184: 0.15 | E184: 0.08 | F184: 0.1 | G184: 0.26 | H184: 0.23 | I184: 0.36
A185: Italy | B185: 0.07 | C185: 0.51 | D185: 0.22 | E185: 0.05 | F185: 0.06 | G185: 0.08 | H185: 0.27 | I185: 0.14
A186: Kazakhstan | B186: 0.08 | C186: 0.4 | D186: 0.18 | E186: 0.06 | F186: 0.16 | G186: 0.13 | H186: 0.24 | I186: 0.29
A187: Kosovo | B187: 0.03 | C187: 0.32 | D187: 0.25 | E187: 0.1 | F187: 0.13 | G187: 0.18 | H187: 0.35 | I187: 0.31
A188: Kyrgyz Rep. | B188: 0.09 | C188: 0.24 | D188: 0.35 | E188: 0.19 | F188: 0.09 | G188: 0.04 | H188: 0.54 | I188: 0.13
A189: Latvia | B189: 0.06 | C189: 0.36 | D189: 0.12 | E189: 0.03 | F189: 0.16 | G189: 0.27 | H189: 0.15 | I189: 0.43
A190: Lithuania | B190: 0.03 | C190: 0.35 | D190: 0.12 | E190: 0.02 | F190: 0.15 | G190: 0.33 | H190: 0.14 | I190: 0.48
A191: Mongolia | B191: 0.15 | C191: 0.41 | D191: 0.22 | E191: 0.08 | F191: 0.06 | G191: 0.08 | H191: 0.3 | I191: 0.14
A192: Montenegro | B192: 0.07 | C192: 0.2 | D192: 0.1 | E192: 0.08 | F192: 0.21 | G192: 0.34 | H192: 0.18 | I192: 0.55
A193: Poland | B193: 0.06 | C193: 0.32 | D193: 0.12 | E193: 0.01 | F193: 0.14 | G193: 0.35 | H193: 0.13 | I193: 0.49
A194: Romania | B194: 0.05 | C194: 0.31 | D194: 0.23 | E194: 0.1 | F194: 0.16 | G194: 0.15 | H194: 0.33 | I194: 0.31
A195: Russia | B195: 0.02 | C195: 0.36 | D195: 0.18 | E195: 0.08 | F195: 0.15 | G195: 0.2 | H195: 0.26 | I195: 0.35
A196: Serbia | B196: 0.05 | C196: 0.29 | D196: 0.24 | E196: 0.1 | F196: 0.13 | G196: 0.19 | H196: 0.34 | I196: 0.32
A197: Slovak Rep. | B197: 0.03 | C197: 0.32 | D197: 0.21 | E197: 0.08 | F197: 0.16 | G197: 0.21 | H197: 0.29 | I197: 0.37
A198: Slovenia | B198: 0.07 | C198: 0.44 | D198: 0.14 | E198: 0.05 | F198: 0.12 | G198: 0.17 | H198: 0.19 | I198: 0.29
A199: Tajikistan | B199: 0.28 | C199: 0.26 | D199: 0.14 | E199: 0.03 | F199: 0.11 | G199: 0.17 | H199: 0.17 | I199: 0.28
A200: Turkey | B200: 0.14 | C200: 0.24 | D200: 0.26 | E200: 0.14 | F200: 0.11 | G200: 0.11 | H200: 0.4 | I200: 0.22
... 455 more rows

Sheet General stats (hidden)
A1: VARIABLE | B1: DESCRIPTION
A3: _SEXE | B3: Please indicate your gender
A4: Country | B4: Male | C4: Female | D4: Total
B5: % | C5: % | D5: %
A6: Albania | B6: 0.4950066564 | C6: 0.5049933436 | D6: =B6+C6 -> 1
A7: Armenia | B7: 0.4644509744 | C7: 0.5355490256 | D7: =B7+C7 -> 1
A8: Azerbaijan | B8: 0.4814679004 | C8: 0.5185320996 | D8: 1
A9: Belarus | B9: 0.4536234719 | C9: 0.5463765281 | D9: 1
A10: Bosnia and Herz. | B10: 0.4989997663 | C10: 0.5010002337 | D10: 1
A11: Bulgaria | B11: 0.4807052207 | C11: 0.5192947793 | D11: 1
A12: Croatia | B12: 0.4753210911 | C12: 0.5246789089 | D12: 1
A13: Cyprus | B13: 0.4797980451 | C13: 0.5202019549 | D13: 1
A14: Czech Rep. | B14: 0.4846701325 | C14: 0.5153298675 | D14: 1
A15: Estonia | B15: 0.4572577101 | C15: 0.5427422899 | D15: 1
A16: FYR Macedonia | B16: 0 | C16: 0 | D16: 0
A17: Georgia | B17: 0.4582178374 | C17: 0.5417821626 | D17: 1
A18: Germany | B18: 0.4862221407 | C18: 0.5137778593 | D18: 1
A19: Greece | B19: 0.4844648852 | C19: 0.5155351148 | D19: 1
A20: Hungary | B20: 0.4653032569 | C20: 0.5346967431 | D20: 1
A21: Italy | B21: 0.4793872967 | C21: 0.5206127033 | D21: 1
A22: Kazakhstan | B22: 0.4696499562 | C22: 0.5303500438 | D22: 1
A23: Kosovo | B23: 0.4961870034 | C23: 0.5038129966 | D23: 1
A24: Kyrgyz Rep. | B24: 0.4856435036 | C24: 0.5143564964 | D24: 1
A25: Latvia | B25: 0.4567646061 | C25: 0.5432353939 | D25: 1
A26: Lithuania | B26: 0.4494726026 | C26: 0.5505273974 | D26: 1
A27: Moldova | B27: 0 | C27: 0 | D27: 0
A28: Mongolia | B28: 0.4808636469 | C28: 0.5191363531 | D28: 1
A29: Montenegro | B29: 0.4861993034 | C29: 0.5138006966 | D29: 1
A30: Poland | B30: 0.4774532829 | C30: 0.5225467171 | D30: 1
A31: Romania | B31: 0.4837775132 | C31: 0.5162224868 | D31: 1
A32: Russia | B32: 0.4515364045 | C32: 0.5484635955 | D32: 1
A33: Serbia | B33: 0.4809675975 | C33: 0.5190324025 | D33: 1
A34: Slovak Rep. | B34: 0.4814781402 | C34: 0.5185218598 | D34: 1
A35: Slovenia | B35: 0.4915551677 | C35: 0.5084448323 | D35: 1
A36: Tajikistan | B36: 0.4987469409 | C36: 0.5012530591 | D36: 1
A37: Turkey | B37: 0.4925868031 | C37: 0.5074131969 | D37: 1
A38: Ukraine | B38: 0 | C38: 0 | D38: 0
A40: _URBAN | B40: Do you live in an urban or rural area?
A41: Country | B41: Rural | C41: Semi-Urban | D41: Urban | E41: Total
B42: % | C42: % | D42: % | E42: %
A43: Albania | B43: 0.4533603205 | D43: 0.5466396795 | E43: =B43+C43+D43 -> 1
A44: Armenia | B44: 0.3573123782 | D44: 0.6426876218 | E44: =B44+C44+D44 -> 1
A45: Azerbaijan | B45: 0.4543458224 | D45: 0.5456541776 | E45: 1
A46: Belarus | B46: 0.2285048112 | D46: 0.7714951888 | E46: 1
A47: Bosnia and Herz. | B47: 0.4000001668 | D47: 0.5999998332 | E47: 1
A48: Bulgaria | B48: 0.2696866109 | D48: 0.7303133891 | E48: 1
A49: Croatia | B49: 0.3864331107 | D49: 0.6135668893 | E49: 1
A50: Cyprus | B50: 0.3218695857 | D50: 0.6781304143 | E50: 1
A51: Czech Rep. | B51: 0.3780897253 | D51: 0.6219102747 | E51: 1
A52: Estonia | B52: 0.3649264819 | D52: 0.6350735181 | E52: 1
A53: FYR Macedonia | B53: 0 | D53: 0 | E53: 0
A54: Georgia | B54: 0.5185591468 | D54: 0.4814408532 | E54: 1
A55: Germany | B55: 0.2499999533 | D55: 0.7500000467 | E55: 1
A56: Greece | B56: 0.2199170287 | D56: 0.7800829713 | E56: 1
A57: Hungary | B57: 0.3008655886 | D57: 0.6991344114 | E57: 1
A58: Italy | B58: 0.1199030868 | D58: 0.8800969132 | E58: 1
A59: Kazakhstan | B59: 0.4286477959 | D59: 0.5713522041 | E59: 1
A60: Kosovo | B60: 0.6076614959 | D60: 0.3923385041 | E60: 1
A61: Kyrgyz Rep. | B61: 0.6448432204 | D61: 0.3551567796 | E61: 1
A62: Latvia | B62: 0.3163764242 | D62: 0.6836235758 | E62: 1
A63: Lithuania | B63: 0.3265828449 | D63: 0.6734171551 | E63: 1
A64: Moldova | B64: 0 | D64: 0 | E64: 0
A65: Mongolia | B65: 0.3306665423 | D65: 0.6693334577 | E65: 1
A66: Montenegro | B66: 0.4639832255 | D66: 0.5360167745 | E66: 1
A67: Poland | B67: 0.3869196411 | D67: 0.6130803589 | E67: 1
A68: Romania | B68: 0.4502163026 | D68: 0.5497836974 | E68: 1
A69: Russia | B69: 0.2489085612 | D69: 0.7510914388 | E69: 1
A70: Serbia | B70: 0.4069579676 | D70: 0.5930420324 | E70: 1
A71: Slovak Rep. | B71: 0.5323968475 | D71: 0.4676031525 | E71: 1
A72: Slovenia | B72: 0 | D72: 0 | E72: 0
A73: Tajikistan | B73: 0.7236257221 | D73: 0.2763742779 | E73: 1
A74: Turkey | B74: 0.06778052587 | D74: 0.9322194741 | E74: 1
A75: Ukraine | B75: 0 | D75: 0 | E75: 0
A77: _AGE | B77: Grouped results
A78: Country | B78: 18-24 | C78: 25-34 | D78: 35-54 | E78: 55+
B79: % | C79: % | D79: % | E79: %
A80: Albania | B80: 0.1704308969 | C80: 0.1932427583 | D80: 0.3397972537 | E80: 0.2965290911
A81: Armenia | B81: 0.1702036544 | C81: 0.2251359748 | D81: 0.3366603996 | E81: 0.2679999712
A82: Azerbaijan | B82: 0.207654669 | C82: 0.2436900733 | D82: 0.383600471 | E82: 0.1650547867
A83: Belarus | B83: 0.1074410356 | C83: 0.194601033 | D83: 0.3557208876 | E83: 0.3422370439
A84: Bosnia and Herz. | B84: 0.1180019849 | C84: 0.1878782164 | D84: 0.3671049968 | E84: 0.3270148019
A85: Bulgaria | B85: 0.08814557512 | C85: 0.1669628055 | D85: 0.3375770369 | E85: 0.4073145825
A86: Croatia | B86: 0.103356566 | C86: 0.164868326 | D86: 0.3465792491 | E86: 0.3851958589
A87: Cyprus | B87: 0.1315538239 | C87: 0.2135224704 | D87: 0.3503525214 | E87: 0.3045711844
A88: Czech Rep. | B88: 0.1070700548 | C88: 0.1704189766 | D88: 0.3543584439 | E88: 0.3681525247
A89: Estonia | B89: 0.09685766319 | C89: 0.1789961675 | D89: 0.3335247439 | E89: 0.3906214254
A90: FYR Macedonia | B90: 0 | C90: 0 | D90: 0 | E90: 0
A91: Georgia | B91: 0.1200926188 | C91: 0.1813165011 | D91: 0.327103767 | E91: 0.3714871131
A92: Germany | B92: 0.09147056179 | C92: 0.1253579066 | D92: 0.3705313669 | E92: 0.4126401647
A93: Greece | B93: 0.09956167688 | C93: 0.1539365382 | D93: 0.3611336468 | E93: 0.3853681382
A94: Hungary | B94: 0.1055514182 | C94: 0.1842479894 | D94: 0.3265134755 | E94: 0.3836871169
A95: Italy | B95: 0.08350245227 | C95: 0.1267465999 | D95: 0.3781414518 | E95: 0.411609496
A96: Kazakhstan | B96: 0.1821904023 | C96: 0.2109635457 | D96: 0.395748061 | E96: 0.2110979909
A97: Kosovo | B97: 0.2020684653 | C97: 0.2375189251 | D97: 0.3553451776 | E97: 0.205067432
A98: Kyrgyz Rep. | B98: 0.2136125157 | C98: 0.2618282881 | D98: 0.3538507796 | E98: 0.1707084166
A99: Latvia | B99: 0.09204126123 | C99: 0.1778534757 | D99: 0.3473863913 | E99: 0.3827188718
A100: Lithuania | B100: 0.1162196379 | C100: 0.1633320887 | D100: 0.3337764157 | E100: 0.3866718577
A101: Moldova | B101: 0 | C101: 0 | D101: 0 | E101: 0
A102: Mongolia | B102: 0.1885087242 | C102: 0.2699556564 | D102: 0.3956949147 | E102: 0.1458407047
A103: Montenegro | B103: 0.1275326493 | C103: 0.2067608014 | D103: 0.3396678012 | E103: 0.326038748
A104: Poland | B104: 0.1050438021 | C104: 0.1781704636 | D104: 0.350677967 | E104: 0.3661077673
A105: Romania | B105: 0.09530244679 | C105: 0.1496068561 | D105: 0.3772644226 | E105: 0.3778262746
A106: Russia | B106: 0.1032259729 | C106: 0.1922980044 | D106: 0.3662963389 | E106: 0.3381796837
A107: Serbia | B107: 0.1019433265 | C107: 0.1692964835 | D107: 0.3278290136 | E107: 0.4009311765
A108: Slovak Rep. | B108: 0.1126236522 | C108: 0.176716991 | D108: 0.3754091062 | E108: 0.3352502505
A109: Slovenia | B109: 0.08543460524 | C109: 0.1559575478 | D109: 0.3659043898 | E109: 0.3927034572
A110: Tajikistan | B110: 0.2719820214 | C110: 0.2511017446 | D110: 0.3527493413 | E110: 0.1241668927
A111: Turkey | B111: 0.1552884879 | C111: 0.2451115777 | D111: 0.3594822726 | E111: 0.2401176619
A112: Ukraine | B112: 0 | C112: 0 | D112: 0 | E112: 0
A114: _EDUCATION | B114: What is the highest level of education you attained?
A115: Country | B115: No degree/No education | C115: Primary education | D115: Lower secondary education | E115: (Upper) secondary education | F115: Post-secondary non-tertiary education | G115: Tertiary education (not a university diploma) | H115: Bachelor's degree or more | I115: Master's degree or PhD
B116: % | C116: % | D116: % | E116: % | F116: % | G116: % | H116: % | I116: %
A117: Albania | B117: 0 | C117: 0.1180456269 | D117: 0.3171584731 | E117: 0.3816332053 | F117: 0.0053879299 | G117: 0.03276140862 | H117: 0.1315720192 | I117: 0.01344133703
A118: Armenia | B118: 0 | C118: 0.0356521986 | D118: 0.1015849725 | E118: 0.3201281532 | F118: 0.2729346682 | G118: 0.03873307807 | H118: 0.1460721404 | I118: 0.084894789
A119: Azerbaijan | B119: 0 | C119: 0 | D119: 0.3479174435 | E119: 0.2823196543 | F119: 0 | G119: 0.3697629022 | H119: 0 | I119: 0
A120: Belarus | B120: 0 | C120: 0 | D120: 0.03669953541 | E120: 0.3091522655 | F120: 0.3435296407 | G120: 0.2562024138 | H120: 0.05441614463 | I120: 0
A121: Bosnia and Herz. | B121: 0.01856426194 | C121: 0.1645872759 | D121: 0.3528276654 | E121: 0.3054256325 | F121: 0.04327641871 | G121: 0.05071646149 | H121: 0.05755299517 | I121: 0.007049288949
A122: Bulgaria | B122: 0.04196391034 | C122: 0.1937334449 | D122: 0 | E122: 0.5348286601 | F122: 0.05942863784 | G122: 0.005569164511 | H122: 0.07918085377 | I122: 0.08529532852
A123: Croatia | B123: 0.02356111805 | C123: 0.1664315191 | D123: 0.2294518466 | E123: 0.4385256409 | F123: 0.01012704139 | G123: 0.06080552205 | H123: 0.03494976442 | I123: 0.0361475475
A124: Cyprus | B124: 0 | C124: 0.2048377059 | D124: 0.163762873 | E124: 0.4176102907 | F124: 0.04492294595 | G124: 0.06163865047 | H124: 0.09747179234 | I124: 0.009755741619
A125: Czech Rep. | B125: 0 | C125: 0 | D125: 0 | E125: 0 | F125: 0 | G125: 0 | H125: 0 | I125: 0
A126: Estonia | B126: 0 | C126: 0.008596951876 | D126: 0.06965227464 | E126: 0.286515586 | F126: 0.3381611679 | G126: 0.1240487306 | H126: 0.09652765145 | I126: 0.07649763754
A127: FYR Macedonia | B127: 0 | C127: 0 | D127: 0 | E127: 0 | F127: 0 | G127: 0 | H127: 0 | I127: 0
A128: Georgia | B128: 0 | C128: 0.03437869056 | D128: 0.1132813627 | E128: 0.3031248108 | F128: 0.1474965648 | G128: 0.1564978703 | H128: 0.1418198146 | I128: 0.1034008862
A129: Germany | B129: 0 | C129: 0.1367864717 | D129: 0.02964729619 | E129: 0.3416674197 | F129: 0.150281027 | G129: 0.006111154241 | H129: 0.1353827155 | I129: 0.2001239157
A130: Greece | B130: 0.007431028289 | C130: 0.1973595305 | D130: 0.1720619466 | E130: 0.4620384974 | F130: 0.03541503213 | G130: 0.03011430379 | H130: 0.09557966129 | I130: 0
A131: Hungary | B131: 0.01016794321 | C131: 0.2753976102 | D131: 0.1836412115 | E131: 0.3393929611 | F131: 0.06742421029 | G131: 0.09655227886 | H131: 0.02158213316 | I131: 0.00584165173
A132: Italy | B132: 0.001971766524 | C132: 0.07706988828 | D132: 0.2593354351 | E132: 0.4848554737 | F132: 0.0307593374 | G132: 0.002783901289 | H132: 0.1179998139 | I132: 0.02522438382
A133: Kazakhstan | B133: 0.008312300317 | C133: 0.01052592823 | D133: 0.03936128748 | E133: 0.2723328928 | F133: 0.356201061 | G133: 0.2674473318 | H133: 0.04581919847 | I133: 0
A134: Kosovo | B134: 0.1117450005 | C134: 0.3120035563 | D134: 0.1181645387 | E134: 0.2887156195 | F134: 0.01442531181 | G134: 0.03780011443 | H134: 0.1126111933 | I134: 0.004534665481
A135: Kyrgyz Rep. | B135: 0.05423407665 | C135: 0.006746951571 | D135: 0.08295693242 | E135: 0.2447144154 | F135: 0.2908633739 | G135: 0.312541249 | H135: 0.007943001009 | I135: 0
A136: Latvia | B136: 0 | C136: 0.01721482769 | D136: 0.1038514375 | E136: 0.2535551591 | F136: 0.3177346508 | G136: 0.06970292854 | H136: 0.1331261471 | I136: 0.1048148491
A137: Lithuania | B137: 0.01792633582 | C137: 0.01885734344 | D137: 0.08562030291 | E137: 0.1986232451 | F137: 0.2513670105 | G137: 0.2187387541 | H137: 0.1526289891 | I137: 0.05623801895
A138: Moldova | B138: 0 | C138: 0 | D138: 0 | E138: 0 | F138: 0 | G138: 0 | H138: 0 | I138: 0
A139: Mongolia | B139: 0 | C139: 0.07439086976 | D139: 0.2032937412 | E139: 0.3550292898 | F139: 0.08716079728 | G139: 0.1451288441 | H139: 0.1277958731 | I139: 0.007200584736
A140: Montenegro | B140: 0.009528734346 | C140: 0.101750494 | D140: 0.1829507685 | E140: 0.431483435 | F140: 0.09913736453 | G140: 0.02733549412 | H140: 0.1478137095 | I140: 0
A141: Poland | B141: 0 | C141: 0.0775120848 | D141: 0.0962103743 | E141: 0.5367850903 | F141: 0.001426704025 | G141: 0.005303526616 | H141: 0.03076643817 | I141: 0.2519957817
A142: Romania | B142: 0.02119434408 | C142: 0.04234440594 | D142: 0.3287064519 | E142: 0.2589847344 | F142: 0.2159135353 | G142: 0.02121267118 | H142: 0.1035538813 | I142: 0.008089975931
A143: Russia | B143: 0 | C143: 0 | D143: 0.04896200285 | E143: 0.3273838025 | F143: 0.2822738505 | G143: 0.2945132596 | H143: 0.04686708451 | I143: 0
A144: Serbia | B144: 0.02134688766 | C144: 0.1551979079 | D144: 0.2133792434 | E144: 0.3981670431 | F144: 0.1215577605 | G144: 0.01899104041 | H144: 0.06625247296 | I144: 0.005107644122
A145: Slovak Rep. | B145: 0 | C145: 0.1267017785 | D145: 0.3032210217 | E145: 0.3559182708 | F145: 0.02521770265 | G145: 0.01031779579 | H145: 0.01636788725 | I145: 0.1622555433
A146: Slovenia | B146: 0.005072096024 | C146: 0.2515563669 | D146: 0.2114527289 | E146: 0.3593425429 | F146: 0.05895668849 | G146: 0.01832879739 | H146: 0.08614000341 | I146: 0.009150775901
A147: Tajikistan | B147: 0.01699895809 | C147: 0.04978403169 | D147: 0.09131259183 | E147: 0.3856588183 | F147: 0.135950845 | G147: 0.1380979689 | H147: 0.1644384286 | I147: 0.01775835764
A148: Turkey | B148: 0 | C148: 0.170120372 | D148: 0.09823805114 | E148: 0.3489706886 | F148: 0.1418222695 | G148: 0.131391849 | H148: 0.09347768119 | I148: 0.01597908864
A149: Ukraine | B149: 0 | C149: 0 | D149: 0 | E149: 0 | F149: 0 | G149: 0 | H149: 0 | I149: 0
A151: Sample size
A152: Country
A153: Albania | B153: 1500
A154: Armenia | B154: 1527
A155: Azerbaijan | B155: 1510
A156: Belarus | B156: 1504
A157: Bosnia and Herz. | B157: 1499
A158: Bulgaria | B158: 1500
A159: Croatia | B159: 1503
A160: Cyprus | B160: 1500
A161: Czech Rep. | B161: 1532
A162: Estonia | B162: 1503
A163: FYR Macedonia
A164: Georgia | B164: 1508
A165: Germany | B165: 1500
A166: Greece | B166: 1503
A167: Hungary | B167: 1497
A168: Italy | B168: 1501
A169: Kazakhstan | B169: 1505
A170: Kosovo | B170: 1500
A171: Kyrgyz Rep. | B171: 1500
A172: Latvia | B172: 1482
A173: Lithuania | B173: 1501
A174: Moldova
A175: Mongolia | B175: 1500
A176: Montenegro | B176: 1503
A177: Poland | B177: 1500
A178: Romania | B178: 1512
A179: Russia | B179: 1507
A180: Serbia | B180: 1508
A181: Slovak Rep. | B181: 1544
A182: Slovenia | B182: 1501
A183: Tajikistan | B183: 1510
A184: Turkey | B184: 1500
A185: Ukraine
A187: Total | B187: 45164
A190: Dates | B190: Start | C190: End
A191: Albania | D191: no data
A192: Armenia | B192: 2015-12-28 | C192: 2016-05-05
A193: Azerbaijan | B193: 2015-12-28 | C193: 2016-05-05
A194: Belarus | B194: 2016-04-02 | C194: 2016-05-22
A195: Bosnia and Herz. | B195: 2016-12-17 | C195: 2016-02-10
A196: Bulgaria | B196: 2016-12-11 | C196: 2016-02-01
A197: Croatia | B197: 2015-12-31 | C197: 2016-02-19
A198: Cyprus | D198: no data
A199: Czech Rep. | B199: 2016-01-13 | C199: 2016-05-01
A200: Estonia | B200: 2016-12-19 | C200: 2016-02-15
A201: FYR Macedonia | D201: no data
A202: Georgia | B202: 2016-02-20 | C202: 2016-05-30
A203: Germany | D203: no data
A204: Greece | B204: 2015-11-18 | C204: 2016-02-18
A205: Hungary | B205: 2015-12-09 | C205: 2016-05-08
A206: Italy | B206: 2016-01-18 | C206: 2016-03-01 | D206: first date 01/01/2010
A207: Kazakhstan | B207: 2016-03-01 | C207: 2016-05-19
A208: Kosovo | B208: 2016-03-01 | C208: 2016-05-19
... 50 more rows

Sheet Q3 (hidden)
A1: QUESTION 3
A3: Input for pivot table
B4: People don’t have enough time to report it | C4: People don’t know where to report it | D4: People don’t know how to report it | E4: Nothing will be done / It wouldn’t make a difference | F4: It’s too expensive to report (e.g. due to travel or phone charges) | G4: Corruption is normal / Everyone does it / everyone is involved | H4: People are afraid of the consequences | I4: The officials where they would report to are also corrupt / officials are involved in the corruption | J4: It’s government’s money, not the people’s, so it’s not our problem | K4: Corruption is hidden/ it’s difficult to prove | L4: Because they would implicate themselves as bribe-givers | M4: Most people do report incidents of corruption | N4: Other | O4: Don’t know | P4: Refusal | Q4: ADD NEW LABEL
A5: Country | B5: 1 | C5: 2 | D5: 3 | E5: 4 | F5: 5 | G5: 6 | H5: 7 | I5: 8 | J5: 9 | K5: 10 | L5: 11 | M5: 12 | N5: 13 | O5: 14 | P5: 15 | Q5: 16
A6: Albania | B6: 0.05 | C6: 0.08 | D6: 0.08 | E6: 0.15 | F6: 0 | G6: 0.03 | H6: 0.13 | I6: 0.11 | J6: 0.01 | K6: 0.12 | L6: 0.1 | M6: 0.06 | N6: 0 | O6: 0.06 | P6: 0.03
A7: Armenia | B7: 0 | C7: 0.02 | D7: 0.02 | E7: 0.23 | F7: 0 | G7: 0.04 | H7: 0.41 | I7: 0.05 | J7: 0 | K7: 0.03 | L7: 0.05 | M7: 0 | N7: 0.02 | O7: 0.13 | P7: 0
A8: Azerbaijan | B8: 0.03 | C8: 0.02 | D8: 0.02 | E8: 0.03 | F8: 0 | G8: 0 | H8: 0.14 | I8: 0.01 | J8: 0 | K8: 0.12 | L8: 0.14 | M8: 0.04 | N8: 0.02 | O8: 0.42 | P8: 0.01
A9: Belarus | B9: 0.05 | C9: 0.06 | D9: 0.04 | E9: 0.15 | F9: 0.03 | G9: 0.03 | H9: 0.2 | I9: 0.08 | J9: 0.02 | K9: 0.09 | L9: 0.14 | M9: 0.04 | N9: 0.01 | O9: 0.04 | P9: 0.01
A10: Bosnia and Herz. | B10: 0.02 | C10: 0.04 | D10: 0.05 | E10: 0.2 | F10: 0.01 | G10: 0.01 | H10: 0.33 | I10: 0.05 | J10: 0 | K10: 0.17 | L10: 0.04 | M10: 0.01 | N10: 0.01 | O10: 0.06 | P10: 0.02
A11: Bulgaria | B11: 0.01 | C11: 0.03 | D11: 0.04 | E11: 0.17 | F11: 0 | G11: 0.02 | H11: 0.29 | I11: 0.04 | J11: 0 | K11: 0.22 | L11: 0.06 | M11: 0.02 | N11: 0 | O11: 0.08 | P11: 0.01
A12: Croatia | B12: 0.03 | C12: 0.04 | D12: 0.05 | E12: 0.15 | F12: 0 | G12: 0.02 | H12: 0.29 | I12: 0.04 | J12: 0.01 | K12: 0.24 | L12: 0.05 | M12: 0.01 | N12: 0 | O12: 0.05 | P12: 0.02
A13: Cyprus | B13: 0.01 | C13: 0.02 | D13: 0.01 | E13: 0.16 | F13: 0 | G13: 0.03 | H13: 0.4 | I13: 0.02 | J13: 0 | K13: 0.19 | L13: 0.08 | M13: 0.05 | N13: 0 | O13: 0.03 | P13: 0
A14: Czech Rep. | B14: 0.02 | C14: 0.05 | D14: 0.05 | E14: 0.14 | F14: 0 | G14: 0.01 | H14: 0.29 | I14: 0.02 | J14: 0.01 | K14: 0.27 | L14: 0.07 | M14: 0.02 | N14: 0.01 | O14: 0.03 | P14: 0.01
A15: Estonia | B15: 0.03 | C15: 0.02 | D15: 0.03 | E15: 0.11 | F15: 0 | G15: 0.01 | H15: 0.29 | I15: 0.01 | J15: 0.02 | K15: 0.15 | L15: 0.12 | M15: 0.02 | N15: 0.03 | O15: 0.15 | P15: 0
A16: Georgia | B16: 0.02 | C16: 0.04 | D16: 0.01 | E16: 0.07 | F16: 0 | G16: 0.01 | H16: 0.29 | I16: 0.02 | J16: 0.01 | K16: 0.14 | L16: 0.05 | M16: 0.04 | N16: 0.01 | O16: 0.28 | P16: 0.02
A17: Germany | B17: 0.01 | C17: 0.08 | D17: 0.07 | E17: 0.07 | F17: 0.01 | G17: 0 | H17: 0.19 | I17: 0.01 | J17: 0 | K17: 0.24 | L17: 0.05 | M17: 0.12 | N17: 0.01 | O17: 0.14 | P17: 0
A18: Greece | B18: 0.02 | C18: 0.06 | D18: 0.07 | E18: 0.18 | F18: 0.01 | G18: 0.05 | H18: 0.27 | I18: 0.03 | J18: 0 | K18: 0.19 | L18: 0.08 | M18: 0.02 | N18: 0 | O18: 0.02 | P18: 0
A19: Hungary | B19: 0.03 | C19: 0.05 | D19: 0.05 | E19: 0.2 | F19: 0.01 | G19: 0.02 | H19: 0.23 | I19: 0.02 | J19: 0.01 | K19: 0.24 | L19: 0.02 | M19: 0.01 | N19: 0 | O19: 0.08 | P19: 0.03
A20: Italy | B20: 0.03 | C20: 0.07 | D20: 0 | E20: 0.16 | F20: 0 | G20: 0.03 | H20: 0.28 | I20: 0.05 | J20: 0.01 | K20: 0.2 | L20: 0.04 | M20: 0.08 | N20: 0.01 | O20: 0.03 | P20: 0.01
A21: Kazakhstan | B21: 0.04 | C21: 0.03 | D21: 0.03 | E21: 0.13 | F21: 0.01 | G21: 0.02 | H21: 0.26 | I21: 0.03 | J21: 0.01 | K21: 0.14 | L21: 0.14 | M21: 0.07 | N21: 0 | O21: 0.06 | P21: 0.02
A22: Kosovo | B22: 0.01 | C22: 0.08 | D22: 0.05 | E22: 0.11 | F22: 0 | G22: 0 | H22: 0.31 | I22: 0.07 | J22: 0 | K22: 0.09 | L22: 0.05 | M22: 0.03 | N22: 0 | O22: 0.16 | P22: 0.05
A23: Kyrgyz Rep. | B23: 0.05 | C23: 0.07 | D23: 0.05 | E23: 0.11 | F23: 0.03 | G23: 0.08 | H23: 0.1 | I23: 0.12 | J23: 0 | K23: 0.14 | L23: 0.12 | M23: 0.07 | N23: 0.01 | O23: 0.04 | P23: 0.01
A24: Latvia | B24: 0.02 | C24: 0.02 | D24: 0.01 | E24: 0.14 | F24: 0 | G24: 0.04 | H24: 0.34 | I24: 0.04 | J24: 0.01 | K24: 0.12 | L24: 0.09 | M24: 0.01 | N24: 0.05 | O24: 0.1 | P24: 0.01
A25: Lithuania | B25: 0.02 | C25: 0.03 | D25: 0.02 | E25: 0.14 | F25: 0 | G25: 0.03 | H25: 0.39 | I25: 0.01 | J25: 0.01 | K25: 0.21 | L25: 0.07 | M25: 0.01 | N25: 0.01 | O25: 0.05 | P25: 0
A26: Mongolia | B26: 0.03 | C26: 0.08 | D26: 0.06 | E26: 0.09 | F26: 0.01 | G26: 0.05 | H26: 0.22 | I26: 0.07 | J26: 0.03 | K26: 0.2 | L26: 0.11 | M26: 0.02 | N26: 0 | O26: 0.04 | P26: 0
A27: Montenegro | B27: 0.01 | C27: 0.03 | D27: 0.03 | E27: 0.1 | F27: 0 | G27: 0.01 | H27: 0.33 | I27: 0.02 | J27: 0.01 | K27: 0.19 | L27: 0.05 | M27: 0.02 | N27: 0 | O27: 0.15 | P27: 0.05
A28: Poland | B28: 0.06 | C28: 0.07 | D28: 0.07 | E28: 0.08 | F28: 0 | G28: 0.02 | H28: 0.26 | I28: 0.02 | J28: 0 | K28: 0.14 | L28: 0.09 | M28: 0.02 | N28: 0 | O28: 0.17 | P28: 0.01
A29: Romania | B29: 0.05 | C29: 0.08 | D29: 0.05 | E29: 0.14 | F29: 0.02 | G29: 0.01 | H29: 0.36 | I29: 0.03 | J29: 0 | K29: 0.1 | L29: 0.03 | M29: 0.01 | N29: 0 | O29: 0.11 | P29: 0.01
A30: Russia | B30: 0.08 | C30: 0.06 | D30: 0.08 | E30: 0.16 | F30: 0.01 | G30: 0.02 | H30: 0.17 | I30: 0.09 | J30: 0.01 | K30: 0.14 | L30: 0.11 | M30: 0.01 | N30: 0 | O30: 0.05 | P30: 0.01
A31: Serbia | B31: 0.06 | C31: 0.09 | D31: 0.09 | E31: 0.1 | F31: 0.01 | G31: 0.02 | H31: 0.24 | I31: 0.02 | J31: 0 | K31: 0.17 | L31: 0.06 | M31: 0.04 | N31: 0 | O31: 0.08 | P31: 0.01
A32: Slovak Rep. | B32: 0.02 | C32: 0.05 | D32: 0.07 | E32: 0.22 | F32: 0.01 | G32: 0.02 | H32: 0.27 | I32: 0.02 | J32: 0 | K32: 0.19 | L32: 0.07 | M32: 0.02 | N32: 0 | O32: 0.06 | P32: 0.01
A33: Slovenia | B33: 0.01 | C33: 0.02 | D33: 0.02 | E33: 0.11 | F33: 0 | G33: 0.04 | H33: 0.36 | I33: 0.02 | J33: 0 | K33: 0.15 | L33: 0.14 | M33: 0.01 | N33: 0.02 | O33: 0.1 | P33: 0.02
A34: Tajikistan | B34: 0.05 | C34: 0.07 | D34: 0.06 | E34: 0.05 | F34: 0.01 | G34: 0.03 | H34: 0.18 | I34: 0.05 | J34: 0.01 | K34: 0.2 | L34: 0.07 | M34: 0.09 | N34: 0 | O34: 0.11 | P34: 0.02
A35: Turkey | B35: 0.05 | C35: 0.08 | D35: 0.05 | E35: 0.07 | F35: 0 | G35: 0.02 | H35: 0.19 | I35: 0.09 | J35: 0.01 | K35: 0.14 | L35: 0.08 | M35: 0.03 | N35: 0 | O35: 0.14 | P35: 0.04
A37: PT1
A38: Country | B38: Montenegro
A40: Values
A41: Sum of 7 | B41: 0.33
A42: Sum of 6 | B42: 0.01
A43: Sum of 4 | B43: 0.1
A44: Sum of 8 | B44: 0.02
A45: Sum of 10 | B45: 0.19
A46: Sum of 3 | B46: 0.03
A47: Sum of 5 | B47: 0
A48: Sum of 9 | B48: 0.01
A49: Sum of 1 | B49: 0.01
A50: Sum of 2 | B50: 0.03
A51: Sum of 11 | B51: 0.05
A52: Sum of 12 | B52: 0.02
B54: LABELS | G54: Ranking | H54: Ranking2 | I54: Extrac pivot table values | L54: ORDER | N54: This is what is added into the methodology note
A55: Sum of 1 | B55: People don’t have enough time to report it | G55: =+RANK(J55,$J$55:$J$66,0) -> 1 | H55: =SUM(1*(J55<$J$55:$J$66))+1+IF(ROW(J55)-ROW($J$55)=0,0,SUM(1*(J55=OFFSET($J$55,0,0,INDEX(ROW(J55)-ROW($J$55)+1,1)-1,1)))) -> 1 | I55: =A41 -> Sum of 7 | J55: =B41 -> 0.33 | L55: 1 | M55: =+VLOOKUP(L55,$H$55:$I$66,2,FALSE) -> Sum of 7 | N55: =+VLOOKUP(M55,$I$55:$J$66,2,FALSE) -> 0.33 | O55: =+VLOOKUP(M55,$A$55:$B$66,2,FALSE) -> People are afraid of the consequences
A56: Sum of 2 | B56: People don’t know where to report it | G56: 9 | H56: =SUM(1*(J56<$J$55:$J$66))+1+IF(ROW(J56)-ROW($J$55)=0,0,SUM(1*(J56=OFFSET($J$55,0,0,INDEX(ROW(J56)-ROW($J$55)+1,1)-1,1)))) -> 9 | I56: Sum of 6 | J56: 0.01 | L56: 2 | M56: Sum of 10 | N56: 0.19 | O56: Corruption is hidden/ it’s difficult to prove
A57: Sum of 3 | B57: People don’t know how to report it | G57: 3 | H57: =SUM(1*(J57<$J$55:$J$66))+1+IF(ROW(J57)-ROW($J$55)=0,0,SUM(1*(J57=OFFSET($J$55,0,0,INDEX(ROW(J57)-ROW($J$55)+1,1)-1,1)))) -> 3 | I57: Sum of 4 | J57: 0.1 | L57: 3 | M57: Sum of 4 | N57: 0.1 | O57: Nothing will be done / It wouldn’t make a difference
A58: Sum of 4 | B58: Nothing will be done / It wouldn’t make a difference | G58: 7 | H58: =SUM(1*(J58<$J$55:$J$66))+1+IF(ROW(J58)-ROW($J$55)=0,0,SUM(1*(J58=OFFSET($J$55,0,0,INDEX(ROW(J58)-ROW($J$55)+1,1)-1,1)))) -> 7 | I58: Sum of 8 | J58: 0.02 | L58: 4 | M58: Sum of 11 | N58: 0.05 | O58: Because they would implicate themselves as bribe-givers
A59: Sum of 5 | B59: It’s too expensive to report (e.g. due to travel or phone charges) | G59: 2 | H59: =SUM(1*(J59<$J$55:$J$66))+1+IF(ROW(J59)-ROW($J$55)=0,0,SUM(1*(J59=OFFSET($J$55,0,0,INDEX(ROW(J59)-ROW($J$55)+1,1)-1,1)))) -> 2 | I59: Sum of 10 | J59: 0.19 | L59: 5 | M59: Sum of 3 | N59: 0.03 | O59: People don’t know how to report it
A60: Sum of 6 | B60: Corruption is normal / Everyone does it / everyone is involved | G60: 5 | H60: =SUM(1*(J60<$J$55:$J$66))+1+IF(ROW(J60)-ROW($J$55)=0,0,SUM(1*(J60=OFFSET($J$55,0,0,INDEX(ROW(J60)-ROW($J$55)+1,1)-1,1)))) -> 5 | I60: Sum of 3 | J60: 0.03 | L60: 6 | M60: Sum of 2 | N60: 0.03 | O60: People don’t know where to report it
A61: Sum of 7 | B61: People are afraid of the consequences | G61: 12 | H61: =SUM(1*(J61<$J$55:$J$66))+1+IF(ROW(J61)-ROW($J$55)=0,0,SUM(1*(J61=OFFSET($J$55,0,0,INDEX(ROW(J61)-ROW($J$55)+1,1)-1,1)))) -> 12 | I61: Sum of 5 | J61: 0 | L61: 7 | M61: Sum of 8 | N61: 0.02 | O61: =+VLOOKUP(M61,$A$55:$B$67,2,FALSE) -> The officials where they would report to are also corrupt / officials are involved in the corruption
A62: Sum of 8 | B62: The officials where they would report to are also corrupt / officials are involved in the corruption | G62: 9 | H62: =SUM(1*(J62<$J$55:$J$66))+1+IF(ROW(J62)-ROW($J$55)=0,0,SUM(1*(J62=OFFSET($J$55,0,0,INDEX(ROW(J62)-ROW($J$55)+1,1)-1,1)))) -> 10 | I62: Sum of 9 | J62: 0.01 | L62: 8 | M62: Sum of 12 | N62: 0.02 | O62: =+VLOOKUP(M62,$A$55:$B$66,2,FALSE) -> Most people do report incidents of corruption
A63: Sum of 9 | B63: It’s government’s money, not the people’s, so it’s not our problem | G63: 9 | H63: =SUM(1*(J63<$J$55:$J$66))+1+IF(ROW(J63)-ROW($J$55)=0,0,SUM(1*(J63=OFFSET($J$55,0,0,INDEX(ROW(J63)-ROW($J$55)+1,1)-1,1)))) -> 11 | I63: Sum of 1 | J63: 0.01 | L63: 9 | M63: Sum of 6 | N63: 0.01 | O63: =+VLOOKUP(M63,$A$55:$B$67,2,FALSE) -> Corruption is normal / Everyone does it / everyone is involved
A64: Sum of 10 | B64: Corruption is hidden/ it’s difficult to prove | G64: 5 | H64: =SUM(1*(J64<$J$55:$J$66))+1+IF(ROW(J64)-ROW($J$55)=0,0,SUM(1*(J64=OFFSET($J$55,0,0,INDEX(ROW(J64)-ROW($J$55)+1,1)-1,1)))) -> 6 | I64: Sum of 2 | J64: 0.03 | L64: 10 | M64: Sum of 9 | N64: 0.01 | O64: =+VLOOKUP(M64,$A$55:$B$66,2,FALSE) -> It’s government’s money, not the people’s, so it’s not our problem
A65: Sum of 11 | B65: Because they would implicate themselves as bribe-givers | G65: 4 | H65: =SUM(1*(J65<$J$55:$J$66))+1+IF(ROW(J65)-ROW($J$55)=0,0,SUM(1*(J65=OFFSET($J$55,0,0,INDEX(ROW(J65)-ROW($J$55)+1,1)-1,1)))) -> 4 | I65: Sum of 11 | J65: 0.05 | L65: 11 | M65: Sum of 1 | N65: 0.01 | O65: =+VLOOKUP(M65,$A$55:$B$66,2,FALSE) -> People don’t have enough time to report it
A66: Sum of 12 | B66: Most people do report incidents of corruption | G66: 7 | H66: =SUM(1*(J66<$J$55:$J$66))+1+IF(ROW(J66)-ROW($J$55)=0,0,SUM(1*(J66=OFFSET($J$55,0,0,INDEX(ROW(J66)-ROW($J$55)+1,1)-1,1)))) -> 8 | I66: Sum of 12 | J66: 0.02 | L66: 12 | M66: Sum of 5 | N66: 0 | O66: =+VLOOKUP(M66,$A$55:$B$66,2,FALSE) -> It’s too expensive to report (e.g. due to travel or phone charges)
A67: Sum of 13 | B67: Other
A68: Sum of 14 | B68: Don't know
B69: NEW LABEL | N69: DO NOT CHANGE this will change automatically (first change green table or reflesh pivot or change label names depending on what you need)
A73: QUESTION 7
A74: Input for pivot table
B75: Refuse to pay bribes | C75: Report corruption when you see or experience it | D75: Vote for clean candidates or parties or for parties that promise to fight corruption | E75: Speak out about the problem, for example, by calling a radio program or writing a letter, or on social media | F75: Talk to friends and relatives about the problem | G75: Sign a petition asking for a stronger fight against corruption | H75: Join or support an organization that is fighting corruption | I75: Participate in protest marches or demonstrations against corruption | J75: Boycott a business which has been found guilty of engaging in corruption | K75: Nothing / Ordinary people cannot do anything | L75: Other [specify] | M75: Don’t know | N75: Not applicable | O75: ADD NEW
A76: Country | B76: 1 | C76: 2 | D76: 3 | E76: 4 | F76: 5 | G76: 6 | H76: 7 | I76: 8 | J76: 9 | K76: 10 | L76: 11 | M76: 12 | N76: 13 | O76: 14
A77: Albania | B77: 0.3 | C77: 0.19 | D77: 0.05 | E77: 0.06 | F77: 0.03 | G77: 0.04 | H77: 0.07 | I77: 0.02 | J77: 0.01 | K77: 0.19 | L77: 0 | M77: 0.04 | N77: 0
A78: Armenia | B78: 0.21 | C78: 0.03 | D78: 0 | E78: 0.01 | F78: 0.01 | G78: 0 | H78: 0.01 | I78: 0.02 | J78: 0 | K78: 0.52 | L78: 0.03 | M78: 0.14 | N78: 0
A79: Azerbaijan | B79: 0.17 | C79: 0.07 | D79: 0.04 | E79: 0.03 | F79: 0.02 | G79: 0.01 | H79: 0.01 | I79: 0.01 | J79: 0 | K79: 0.23 | L79: 0.02 | M79: 0.38 | N79: 0.01
A80: Belarus | B80: 0.25 | C80: 0.06 | D80: 0.08 | E80: 0.03 | F80: 0.02 | G80: 0.01 | H80: 0.01 | I80: 0 | J80: 0.01 | K80: 0.5 | L80: 0 | M80: 0.02 | N80: 0
A81: Bosnia and Herz. | B81: 0.23 | C81: 0.1 | D81: 0.04 | E81: 0.06 | F81: 0.02 | G81: 0.03 | H81: 0.01 | I81: 0.02 | J81: 0.03 | K81: 0.35 | L81: 0.01 | M81: 0.08 | N81: 0
A82: Bulgaria | B82: 0.25 | C82: 0.1 | D82: 0.03 | E82: 0.05 | F82: 0.02 | G82: 0.01 | H82: 0.02 | I82: 0.02 | J82: 0.01 | K82: 0.37 | L82: 0 | M82: 0.09 | N82: 0.01
A83: Croatia | B83: 0.25 | C83: 0.17 | D83: 0.05 | E83: 0.04 | F83: 0.02 | G83: 0.03 | H83: 0.02 | I83: 0.01 | J83: 0.01 | K83: 0.32 | L83: 0 | M83: 0.06 | N83: 0
A84: Cyprus | B84: 0.13 | C84: 0.27 | D84: 0.06 | E84: 0.08 | F84: 0.07 | G84: 0.01 | H84: 0.02 | I84: 0.03 | J84: 0.02 | K84: 0.26 | L84: 0 | M84: 0.04 | N84: 0
A85: Czech Rep. | B85: 0.34 | C85: 0.11 | D85: 0.06 | E85: 0.02 | F85: 0.03 | G85: 0.01 | H85: 0.01 | I85: 0 | J85: 0.02 | K85: 0.32 | L85: 0 | M85: 0.07 | N85: 0
A86: Estonia | B86: 0.3 | C86: 0.15 | D86: 0.04 | E86: 0.05 | F86: 0.02 | G86: 0 | H86: 0.01 | I86: 0 | J86: 0.01 | K86: 0.26 | L86: 0.02 | M86: 0.13 | N86: 0
A87: Georgia | B87: 0.16 | C87: 0.11 | D87: 0.06 | E87: 0.03 | F87: 0 | G87: 0.02 | H87: 0.02 | I87: 0 | J87: 0.01 | K87: 0.3 | L87: 0.02 | M87: 0.24 | N87: 0
A88: Germany | B88: 0.1 | C88: 0.41 | D88: 0.07 | E88: 0.05 | F88: 0.04 | G88: 0.01 | H88: 0.02 | I88: 0.02 | J88: 0.04 | K88: 0.1 | L88: 0 | M88: 0.13 | N88: 0
A89: Greece | B89: 0.32 | C89: 0.32 | D89: 0.05 | E89: 0.06 | F89: 0.03 | G89: 0.01 | H89: 0.02 | I89: 0.01 | J89: 0.01 | K89: 0.15 | L89: 0 | M89: 0.02 | N89: 0
A90: Hungary | B90: 0.1 | C90: 0.07 | D90: 0.05 | E90: 0.06 | F90: 0.07 | G90: 0.02 | H90: 0.01 | I90: 0.01 | J90: 0.02 | K90: 0.46 | L90: 0 | M90: 0.09 | N90: 0.01
A91: Italy | B91: 0.21 | C91: 0.23 | D91: 0.07 | E91: 0.04 | F91: 0.02 | G91: 0.02 | H91: 0.08 | I91: 0.02 | J91: 0.03 | K91: 0.23 | L91: 0.01 | M91: 0.04 | N91: 0
A92: Kazakhstan | B92: 0.24 | C92: 0.08 | D92: 0.05 | E92: 0.06 | F92: 0.01 | G92: 0 | H92: 0.02 | I92: 0 | J92: 0.01 | K92: 0.43 | L92: 0 | M92: 0.07 | N92: 0
A93: Kosovo | B93: 0.18 | C93: 0.17 | D93: 0.05 | E93: 0.05 | F93: 0.02 | G93: 0.04 | H93: 0.06 | I93: 0.04 | J93: 0.01 | K93: 0.19 | L93: 0 | M93: 0.14 | N93: 0.01
A94: Kyrgyz Rep. | B94: 0.2 | C94: 0.1 | D94: 0.1 | E94: 0.05 | F94: 0.02 | G94: 0.01 | H94: 0.02 | I94: 0.01 | J94: 0.03 | K94: 0.42 | L94: 0 | M94: 0.02 | N94: 0
A95: Latvia | B95: 0.29 | C95: 0.17 | D95: 0.02 | E95: 0.03 | F95: 0.01 | G95: 0.01 | H95: 0.02 | I95: 0.01 | J95: 0 | K95: 0.28 | L95: 0.05 | M95: 0.09 | N95: 0.01
A96: Lithuania | B96: 0.34 | C96: 0.15 | D96: 0.03 | E96: 0.02 | F96: 0.01 | G96: 0.01 | H96: 0.01 | I96: 0.01 | J96: 0.01 | K96: 0.31 | L96: 0.02 | M96: 0.07 | N96: 0
A97: Mongolia | B97: 0.49 | C97: 0.14 | D97: 0.02 | E97: 0.02 | F97: 0.01 | G97: 0.01 | H97: 0.02 | I97: 0.01 | J97: 0.01 | K97: 0.24 | L97: 0 | M97: 0.03 | N97: 0
A98: Montenegro | B98: 0.18 | C98: 0.2 | D98: 0.03 | E98: 0.04 | F98: 0.04 | G98: 0.03 | H98: 0.04 | I98: 0.01 | J98: 0.01 | K98: 0.25 | L98: 0 | M98: 0.11 | N98: 0.01
A99: Poland | B99: 0.33 | C99: 0.11 | D99: 0.08 | E99: 0.06 | F99: 0.02 | G99: 0.01 | H99: 0.01 | I99: 0.01 | J99: 0.04 | K99: 0.18 | L99: 0 | M99: 0.15 | N99: 0
A100: Romania | B100: 0.27 | C100: 0.12 | D100: 0.05 | E100: 0.03 | F100: 0.04 | G100: 0.02 | H100: 0.02 | I100: 0.05 | J100: 0 | K100: 0.24 | L100: 0 | M100: 0.14 | N100: 0
A101: Russia | B101: 0.25 | C101: 0.09 | D101: 0.05 | E101: 0.06 | F101: 0.02 | G101: 0.02 | H101: 0.03 | I101: 0.01 | J101: 0.04 | K101: 0.33 | L101: 0 | M101: 0.08 | N101: 0.01
A102: Serbia | B102: 0.16 | C102: 0.15 | D102: 0.08 | E102: 0.06 | F102: 0.06 | G102: 0.03 | H102: 0.02 | I102: 0 | J102: 0.01 | K102: 0.29 | L102: 0 | M102: 0.11 | N102: 0.01
A103: Slovak Rep. | B103: 0.28 | C103: 0.07 | D103: 0.02 | E103: 0.02 | F103: 0.05 | G103: 0.02 | H103: 0.01 | I103: 0.01 | J103: 0.02 | K103: 0.41 | L103: 0 | M103: 0.08 | N103: 0
A104: Slovenia | B104: 0.15 | C104: 0.2 | D104: 0.01 | E104: 0.02 | F104: 0.01 | G104: 0.01 | H104: 0.02 | I104: 0.01 | J104: 0.01 | K104: 0.36 | L104: 0.03 | M104: 0.13 | N104: 0
A105: Tajikistan | B105: 0.31 | C105: 0.1 | D105: 0.07 | E105: 0.04 | F105: 0.03 | G105: 0.01 | H105: 0.04 | I105: 0 | J105: 0 | K105: 0.27 | L105: 0 | M105: 0.1 | N105: 0.01
A106: Turkey | B106: 0.18 | C106: 0.15 | D106: 0.15 | E106: 0.05 | F106: 0.03 | G106: 0.04 | H106: 0.06 | I106: 0.06 | J106: 0.04 | K106: 0.07 | L106: 0 | M106: 0.13 | N106: 0.02
A108: Pivot table:
A109: PT2
A110: Country | B110: Montenegro
G111: Ranking | H111: Ranking2 | I111: Extrac pivot table values | L111: ORDER | N111: This is what is added into the country data sheet
A112: Values | G112: =+RANK(J112,$J$112:$J$121,0) -> 3 | H112: =SUM(1*(J112<$J$112:$J$121))+1+IF(ROW(J112)-ROW($J$112)=0,0,SUM(1*(J112=OFFSET($J$112,0,0,INDEX(ROW(J112)-ROW($J$112)+1,1)-1,1)))) -> 3 | I112: =+A113 -> Sum of 1 | J112: =+B113 -> 0.18 | L112: 1 | M112: =+VLOOKUP(L112,$H$112:$I$121,2,FALSE) -> Sum of 10 | N112: =+VLOOKUP(M112,$I$112:$J$121,2,FALSE) -> 0.25 | O112: =+VLOOKUP(M112,$A$125:$B$134,2,FALSE) -> Ordinary people cannot do anything
A113: Sum of 1 | B113: 0.18 | G113: 2 | H113: =SUM(1*(J113<$J$112:$J$121))+1+IF(ROW(J113)-ROW($J$112)=0,0,SUM(1*(J113=OFFSET($J$112,0,0,INDEX(ROW(J113)-ROW($J$112)+1,1)-1,1)))) -> 2 | I113: =+A114 -> Sum of 2 | J113: =+B114 -> 0.2 | L113: 2 | M113: =+VLOOKUP(L113,$H$112:$I$121,2,FALSE) -> Sum of 2 | N113: =+VLOOKUP(M113,$I$112:$J$121,2,FALSE) -> 0.2 | O113: =+VLOOKUP(M113,$A$125:$B$134,2,FALSE) -> Report corruption when you see or experience it
A114: Sum of 2 | B114: 0.2 | G114: 7 | H114: =SUM(1*(J114<$J$112:$J$121))+1+IF(ROW(J114)-ROW($J$112)=0,0,SUM(1*(J114=OFFSET($J$112,0,0,INDEX(ROW(J114)-ROW($J$112)+1,1)-1,1)))) -> 7 | I114: Sum of 3 | J114: =+B115 -> 0.03 | L114: 3 | M114: Sum of 1 | N114: 0.18 | O114: Refuse to pay bribes
A115: Sum of 3 | B115: 0.03 | G115: 4 | H115: =SUM(1*(J115<$J$112:$J$121))+1+IF(ROW(J115)-ROW($J$112)=0,0,SUM(1*(J115=OFFSET($J$112,0,0,INDEX(ROW(J115)-ROW($J$112)+1,1)-1,1)))) -> 4 | I115: Sum of 4 | J115: =+B116 -> 0.04 | L115: 4 | M115: Sum of 4 | N115: 0.04 | O115: Speak out about the problem
A116: Sum of 4 | B116: 0.04 | G116: 4 | H116: =SUM(1*(J116<$J$112:$J$121))+1+IF(ROW(J116)-ROW($J$112)=0,0,SUM(1*(J116=OFFSET($J$112,0,0,INDEX(ROW(J116)-ROW($J$112)+1,1)-1,1)))) -> 5 | I116: Sum of 5 | J116: 0.04 | L116: 5 | M116: Sum of 5 | N116: 0.04 | O116: Talk to friends and relatives
A117: Sum of 5 | B117: 0.04 | G117: 7 | H117: =SUM(1*(J117<$J$112:$J$121))+1+IF(ROW(J117)-ROW($J$112)=0,0,SUM(1*(J117=OFFSET($J$112,0,0,INDEX(ROW(J117)-ROW($J$112)+1,1)-1,1)))) -> 8 | I117: Sum of 6 | J117: =+B118 -> 0.03 | L117: 6 | M117: Sum of 7 | N117: 0.04 | O117: Join or support an anti-corruption organization
A118: Sum of 6 | B118: 0.03 | G118: 4 | H118: =SUM(1*(J118<$J$112:$J$121))+1+IF(ROW(J118)-ROW($J$112)=0,0,SUM(1*(J118=OFFSET($J$112,0,0,INDEX(ROW(J118)-ROW($J$112)+1,1)-1,1)))) -> 6 | I118: Sum of 7 | J118: =+B119 -> 0.04 | L118: 7 | M118: Sum of 3 | N118: 0.03 | O118: Vote for clean candidates or parties
A119: Sum of 7 | B119: 0.04 | G119: 9 | H119: =SUM(1*(J119<$J$112:$J$121))+1+IF(ROW(J119)-ROW($J$112)=0,0,SUM(1*(J119=OFFSET($J$112,0,0,INDEX(ROW(J119)-ROW($J$112)+1,1)-1,1)))) -> 9 | I119: Sum of 8 | J119: 0.01 | L119: 8 | M119: Sum of 6 | N119: 0.03 | O119: Sign a petition
A120: Sum of 8 | B120: 0.01 | G120: 9 | H120: =SUM(1*(J120<$J$112:$J$121))+1+IF(ROW(J120)-ROW($J$112)=0,0,SUM(1*(J120=OFFSET($J$112,0,0,INDEX(ROW(J120)-ROW($J$112)+1,1)-1,1)))) -> 10 | I120: Sum of 9 | J120: =+B121 -> 0.01 | L120: 9 | M120: Sum of 8 | N120: 0.01 | O120: Participate in protest marches or demonstrations
A121: Sum of 9 | B121: 0.01 | G121: 1 | H121: =SUM(1*(J121<$J$112:$J$121))+1+IF(ROW(J121)-ROW($J$112)=0,0,SUM(1*(J121=OFFSET($J$112,0,0,INDEX(ROW(J121)-ROW($J$112)+1,1)-1,1)))) -> 1 | I121: Sum of 10 | J121: 0.25 | L121: 10 | M121: Sum of 9 | N121: 0.01 | O121: Boycott a corrupt business
A122: Sum of 10 | B122: 0.25
B124: LABELS
A125: Sum of 1 | B125: Refuse to pay bribes
A126: Sum of 2 | B126: Report corruption when you see or experience it
A127: Sum of 3 | B127: Vote for clean candidates or parties
A128: Sum of 4 | B128: Speak out about the problem
A129: Sum of 5 | B129: Talk to friends and relatives
A130: Sum of 6 | B130: Sign a petition
A131: Sum of 7 | B131: Join or support an anti-corruption organization
A132: Sum of 8 | B132: Participate in protest marches or demonstrations
A133: Sum of 9 | B133: Boycott a corrupt business
A134: Sum of 10 | B134: Ordinary people cannot do anything
A135: Sum of 11 | B135: Other
A136: Sum of 12 | B136: Don't know
A137: Sum of 13 | B137: Not applicable
B138: NEW LABEL
A142: QUESTION 4
B143: Health | C143: Crime | D143: The economy | E143: Education | F143: Environment | G143: Corruption/ bribery | H143: Immigration | I143: Political instability/ security | J143: Unemployment | K143: Infrastructure, transportation, roads | L143: Other | M143: ADD NEW
A144: Country | B144: 1 | C144: 2 | D144: 3 | E144: 4 | F144: 5 | G144: 6 | H144: 7 | I144: 8 | J144: 9 | K144: 10 | L144: 11 | M144: 12
A145: Albania | B145: 0.54 | C145: 0.36 | D145: 0.53 | E145: 0.21 | F145: 0.05 | G145: 0.34 | H145: 0.08 | I145: 0.04 | J145: 0.54 | K145: 0.07 | L145: 0
A146: Armenia | B146: 0.58 | C146: 0.16 | D146: 0.27 | E146: 0.24 | F146: 0.02 | G146: 0.37 | H146: 0.32 | I146: 0.15 | J146: 0.64 | K146: 0.04 | L146: 0.01
A147: Azerbaijan | B147: 0.08 | C147: 0.09 | D147: 0.08 | E147: 0.21 | F147: 0.03 | G147: 0.21 | H147: 0.01 | I147: 0.05 | J147: 0.59 | K147: 0.02 | L147: 0.68
A148: Belarus | B148: 0.69 | C148: 0.31 | D148: 0.84 | E148: 0.23 | F148: 0.14 | G148: 0.14 | H148: 0.02 | I148: 0.11 | J148: 0.41 | K148: 0.05 | L148: 0
A149: Bosnia and Herz. | B149: 0.2 | C149: 0.61 | D149: 0.34 | E149: 0.12 | F149: 0.02 | G149: 0.55 | H149: 0.05 | I149: 0.27 | J149: 0.63 | K149: 0.05 | L149: 0
A150: Bulgaria | B150: 0.63 | C150: 0.38 | D150: 0.5 | E150: 0.2 | F150: 0.03 | G150: 0.36 | H150: 0.15 | I150: 0.11 | J150: 0.39 | K150: 0.06 | L150: 0.01
A151: Croatia | B151: 0.25 | C151: 0.4 | D151: 0.47 | E151: 0.14 | F151: 0.02 | G151: 0.51 | H151: 0.13 | I151: 0.15 | J151: 0.66 | K151: 0.05 | L151: 0.01
A152: Cyprus | B152: 0.49 | C152: 0.15 | D152: 0.63 | E152: 0.19 | F152: 0.02 | G152: 0.49 | H152: 0.12 | I152: 0.14 | J152: 0.62 | K152: 0.01 | L152: 0.05
A153: Czech Rep. | B153: 0.32 | C153: 0.37 | D153: 0.28 | E153: 0.19 | F153: 0.15 | G153: 0.41 | H153: 0.45 | I153: 0.15 | J153: 0.24 | K153: 0.08 | L153: 0
A154: Estonia | B154: 0.59 | C154: 0.16 | D154: 0.47 | E154: 0.29 | F154: 0.07 | G154: 0.25 | H154: 0.25 | I154: 0.23 | J154: 0.44 | K154: 0.06 | L154: 0.01
A155: Georgia | B155: 0.78 | C155: 0.18 | D155: 0.56 | E155: 0.3 | F155: 0.04 | G155: 0.12 | H155: 0.05 | I155: 0.14 | J155: 0.76 | K155: 0.05 | L155: 0
A156: Germany | B156: 0.39 | C156: 0.29 | D156: 0.39 | E156: 0.42 | F156: 0.31 | G156: 0.02 | H156: 0.69 | I156: 0.27 | J156: 0.17 | K156: 0.02 | L156: 0.01
A157: Greece | B157: 0.44 | C157: 0.05 | D157: 0.74 | E157: 0.2 | F157: 0.02 | G157: 0.24 | H157: 0.36 | I157: 0.14 | J157: 0.71 | K157: 0 | L157: 0.02
A158: Hungary | B158: 0.67 | C158: 0.29 | D158: 0.3 | E158: 0.19 | F158: 0.09 | G158: 0.28 | H158: 0.29 | I158: 0.04 | J158: 0.46 | K158: 0.08 | L158: 0
A159: Italy | B159: 0.35 | C159: 0.22 | D159: 0.35 | E159: 0.15 | F159: 0.05 | G159: 0.28 | H159: 0.48 | I159: 0.22 | J159: 0.64 | K159: 0.09 | L159: 0.01
A160: Kazakhstan | B160: 0.67 | C160: 0.31 | D160: 0.49 | E160: 0.3 | F160: 0.1 | G160: 0.37 | H160: 0.01 | I160: 0.1 | J160: 0.43 | K160: 0.16 | L160: 0
A161: Kosovo | B161: 0.41 | C161: 0.25 | D161: 0.37 | E161: 0.14 | F161: 0.02 | G161: 0.65 | H161: 0.04 | I161: 0.15 | J161: 0.7 | K161: 0.02 | L161: 0.01
A162: Kyrgyz Rep. | B162: 0.67 | C162: 0.29 | D162: 0.52 | E162: 0.35 | F162: 0.08 | G162: 0.47 | H162: 0.05 | I162: 0.09 | J162: 0.39 | K162: 0.09 | L162: 0
A163: Latvia | B163: 0.66 | C163: 0.12 | D163: 0.46 | E163: 0.28 | F163: 0.02 | G163: 0.35 | H163: 0.16 | I163: 0.22 | J163: 0.37 | K163: 0.18 | L163: 0.01
A164: Lithuania | B164: 0.32 | C164: 0.29 | D164: 0.43 | E164: 0.19 | F164: 0.02 | G164: 0.54 | H164: 0.22 | I164: 0.18 | J164: 0.6 | K164: 0.03 | L164: 0.02
A165: Mongolia | B165: 0.66 | C165: 0.15 | D165: 0.46 | E165: 0.39 | F165: 0.11 | G165: 0.27 | H165: 0.02 | I165: 0.27 | J165: 0.46 | K165: 0.11 | L165: 0
A166: Montenegro | B166: 0.41 | C166: 0.42 | D166: 0.31 | E166: 0.2 | F166: 0.08 | G166: 0.31 | H166: 0.01 | I166: 0.08 | J166: 0.68 | K166: 0.07 | L166: 0.01
A167: Poland | B167: 0.81 | C167: 0.22 | D167: 0.23 | E167: 0.2 | F167: 0.09 | G167: 0.15 | H167: 0.28 | I167: 0.16 | J167: 0.46 | K167: 0.18 | L167: 0.01
A168: Romania | B168: 0.71 | C168: 0.13 | D168: 0.4 | E168: 0.47 | F168: 0.06 | G168: 0.49 | H168: 0.07 | I168: 0.07 | J168: 0.18 | K168: 0.21 | L168: 0.01
A169: Russia | B169: 0.56 | C169: 0.23 | D169: 0.61 | E169: 0.26 | F169: 0.08 | G169: 0.39 | H169: 0.06 | I169: 0.14 | J169: 0.26 | K169: 0.15 | L169: 0.01
A170: Serbia | B170: 0.25 | C170: 0.38 | D170: 0.5 | E170: 0.14 | F170: 0.05 | G170: 0.39 | H170: 0.13 | I170: 0.2 | J170: 0.52 | K170: 0.08 | L170: 0
A171: Slovak Rep. | B171: 0.63 | C171: 0.13 | D171: 0.34 | E171: 0.25 | F171: 0.13 | G171: 0.38 | H171: 0.21 | I171: 0.1 | J171: 0.48 | K171: 0.1 | L171: 0.01
A172: Slovenia | B172: 0.21 | C172: 0.29 | D172: 0.44 | E172: 0.08 | F172: 0.05 | G172: 0.59 | H172: 0.25 | I172: 0.24 | J172: 0.45 | K172: 0.07 | L172: 0.02
A173: Tajikistan | B173: 0.46 | C173: 0.21 | D173: 0.5 | E173: 0.37 | F173: 0.08 | G173: 0.18 | H173: 0.42 | I173: 0.05 | J173: 0.56 | K173: 0.05 | L173: 0.02
A174: Turkey | B174: 0.51 | C174: 0.35 | D174: 0.58 | E174: 0.4 | F174: 0.05 | G174: 0.22 | H174: 0.11 | I174: 0.16 | J174: 0.28 | K174: 0.07 | L174: 0.01
A176: Pivot table:
A177: PT3
A178: Country | B178: Montenegro
G179: Ranking | H179: Ranking2 | I179: Extrac pivot table values | L179: ORDER | N179: This is what is added into the methodology note
A180: Values | G180: =+RANK(J180,$J$180:$J$189,0) -> 3 | H180: =SUM(1*(J180<$J$180:$J$189))+1+IF(ROW(J180)-ROW($J$180)=0,0,SUM(1*(J180=OFFSET($J$180,0,0,INDEX(ROW(J180)-ROW($J$180)+1,1)-1,1)))) -> 3 | I180: =A181 -> Sum of 1 | J180: =B181 -> 0.41 | L180: 1 | M180: =+VLOOKUP(L180,$H$180:$I$189,2,FALSE) -> Sum of 9 | N180: =+VLOOKUP(M180,$I$180:$J$189,2,FALSE) -> 0.68 | O180: =+VLOOKUP(M180,$A$194:$B$204,2,FALSE) -> Unemployment
A181: Sum of 1 | B181: 0.41 | G181: =+RANK(J181,$J$180:$J$189,0) -> 2 | H181: =SUM(1*(J181<$J$180:$J$189))+1+IF(ROW(J181)-ROW($J$180)=0,0,SUM(1*(J181=OFFSET($J$180,0,0,INDEX(ROW(J181)-ROW($J$180)+1,1)-1,1)))) -> 2 | I181: =A182 -> Sum of 2 | J181: =B182 -> 0.42 | L181: 2 | M181: =+VLOOKUP(L181,$H$180:$I$189,2,FALSE) -> Sum of 2 | N181: =+VLOOKUP(M181,$I$180:$J$189,2,FALSE) -> 0.42 | O181: Crime
A182: Sum of 2 | B182: 0.42 | G182: 4 | H182: =SUM(1*(J182<$J$180:$J$189))+1+IF(ROW(J182)-ROW($J$180)=0,0,SUM(1*(J182=OFFSET($J$180,0,0,INDEX(ROW(J182)-ROW($J$180)+1,1)-1,1)))) -> 4 | I182: Sum of 3 | J182: 0.31 | L182: 3 | M182: Sum of 1 | N182: =+VLOOKUP(M182,$I$180:$J$189,2,FALSE) -> 0.41 | O182: Health
A183: Sum of 3 | B183: 0.31 | G183: 6 | H183: =SUM(1*(J183<$J$180:$J$189))+1+IF(ROW(J183)-ROW($J$180)=0,0,SUM(1*(J183=OFFSET($J$180,0,0,INDEX(ROW(J183)-ROW($J$180)+1,1)-1,1)))) -> 6 | I183: Sum of 4 | J183: 0.2 | L183: 4 | M183: =+VLOOKUP(L183,$H$180:$I$189,2,FALSE) -> Sum of 3 | N183: 0.31 | O183: The economy
A184: Sum of 4 | B184: 0.2 | G184: 7 | H184: =SUM(1*(J184<$J$180:$J$189))+1+IF(ROW(J184)-ROW($J$180)=0,0,SUM(1*(J184=OFFSET($J$180,0,0,INDEX(ROW(J184)-ROW($J$180)+1,1)-1,1)))) -> 7 | I184: Sum of 5 | J184: 0.08 | L184: 5 | M184: Sum of 6 | N184: 0.31 | O184: Corruption/Bribery
A185: Sum of 5 | B185: 0.08 | G185: 4 | H185: =SUM(1*(J185<$J$180:$J$189))+1+IF(ROW(J185)-ROW($J$180)=0,0,SUM(1*(J185=OFFSET($J$180,0,0,INDEX(ROW(J185)-ROW($J$180)+1,1)-1,1)))) -> 5 | I185: Sum of 6 | J185: 0.31 | L185: 6 | M185: Sum of 4 | N185: 0.2 | O185: Education
A186: Sum of 6 | B186: 0.31 | G186: 10 | H186: =SUM(1*(J186<$J$180:$J$189))+1+IF(ROW(J186)-ROW($J$180)=0,0,SUM(1*(J186=OFFSET($J$180,0,0,INDEX(ROW(J186)-ROW($J$180)+1,1)-1,1)))) -> 10 | I186: Sum of 7 | J186: 0.01 | L186: 7 | M186: Sum of 5 | N186: 0.08 | O186: Environment
A187: Sum of 7 | B187: 0.01 | G187: 7 | H187: =SUM(1*(J187<$J$180:$J$189))+1+IF(ROW(J187)-ROW($J$180)=0,0,SUM(1*(J187=OFFSET($J$180,0,0,INDEX(ROW(J187)-ROW($J$180)+1,1)-1,1)))) -> 8 | I187: Sum of 8 | J187: 0.08 | L187: 8 | M187: Sum of 8 | N187: 0.08 | O187: Political instability/Security
A188: Sum of 8 | B188: 0.08 | G188: 1 | H188: =SUM(1*(J188<$J$180:$J$189))+1+IF(ROW(J188)-ROW($J$180)=0,0,SUM(1*(J188=OFFSET($J$180,0,0,INDEX(ROW(J188)-ROW($J$180)+1,1)-1,1)))) -> 1 | I188: =A189 -> Sum of 9 | J188: =B189 -> 0.68 | L188: 9 | M188: Sum of 10 | N188: 0.07 | O188: Infrastructure
A189: Sum of 9 | B189: 0.68 | G189: 9 | H189: =SUM(1*(J189<$J$180:$J$189))+1+IF(ROW(J189)-ROW($J$180)=0,0,SUM(1*(J189=OFFSET($J$180,0,0,INDEX(ROW(J189)-ROW($J$180)+1,1)-1,1)))) -> 9 | I189: =A190 -> Sum of 10 | J189: 0.07 | L189: 10 | M189: Sum of 7 | N189: 0.01 | O189: Immigration
A190: Sum of 10 | B190: 0.07
A191: Sum of 11 | B191: 0.01
B193: LABELS
A194: Sum of 1 | B194: Health
A195: Sum of 2 | B195: Crime
A196: Sum of 3 | B196: The economy
A197: Sum of 4 | B197: Education
A198: Sum of 5 | B198: Environment
A199: Sum of 6 | B199: Corruption/Bribery
A200: Sum of 7 | B200: Immigration
A201: Sum of 8 | B201: Political instability/Security
A202: Sum of 9 | B202: Unemployment
A203: Sum of 10 | B203: Infrastructure
A204: Sum of 11 | B204: Other
B208: NEW LABEL
A211: QUESTION 1
B212: President/Prime Minister and officials in his office | C212: Members of the parliament | D212: Government officials | E212: Local government representatives | F212: Tax officials | G212: Police | H212: Judges and magistrates | I212: Business executives | J212: Religious leaders | K212: ADD NEW
A213: Country | B213: 1 | C213: 2 | D213: 3 | E213: 4 | F213: 5 | G213: 6 | H213: 7 | I213: 8 | J213: 9 | K213: 10
A214: Albania | B214: 0.36 | C214: 0.55 | D214: 0.45 | E214: 0.42 | F214: 0.43 | G214: 0.36 | H214: 0.56 | I214: 0.38 | J214: 0.27
A215: Armenia | B215: 0.44 | C215: 0.42 | D215: 0.45 | E215: 0.37 | F215: 0.43 | G215: 0.4 | H215: 0.41 | I215: 0.31 | J215: 0.29
A216: Azerbaijan | B216: 0.09 | C216: 0.12 | D216: 0.12 | E216: 0.14 | F216: 0.18 | G216: 0.21 | H216: 0.16 | I216: 0.1 | J216: 0.08
A217: Belarus | B217: 0.18 | C217: 0.22 | D217: 0.32 | E217: 0.32 | F217: 0.3 | G217: 0.34 | H217: 0.23 | I217: 0.32 | J217: 0.19
A218: Bosnia and Herz. | B218: 0.53 | C218: 0.54 | D218: 0.56 | E218: 0.52 | F218: 0.52 | G218: 0.41 | H218: 0.44 | I218: 0.48 | J218: 0.31
A219: Bulgaria | B219: 0.2 | C219: 0.41 | D219: 0.31 | E219: 0.29 | F219: 0.32 | G219: 0.31 | H219: 0.42 | I219: 0.2 | J219: 0.18
... 53 more rows
